Workbook

Sheet Toelichting
B8: Rekenmodel
B10: Project | D10: Voorbeeldmodel business case wooncoöperaties
B12: Dit rekenmodel is bedoeld ter onderbouwing van de business case van wooncoöperaties en ter ondersteuning van het financieringstraject met banken. De berekeningen zijn gebaseerd op best practices binnen het financieringslandschap en zijn gelieerd aan een door Finance Ideas uitgevoerd onderzoek voor het Ministerie van BZK. Het model biedt voornamelijk handvatten en inzichten voor wooncoöperaties die nog aan het begin van hun financieringstraject staan.
B18: Tabblad | E18: Type tabblad | H18: Toelichting
B20: Cockpit | E20: Invoerblad | H20: Op dit tabblad worden alle uitgangspunten omtrent de investering en financiering opgenomen
B21: MJOP (2020-2049) | E21: Invoerblad | H21: In plaats van een normbedrag voor onderhoud kan hier een volledige MJOP worden ingevuld
B22: Prognose kasstromen | E22: Rekenblad | H22: Op dit tabblad worden de kasstromen in de business case geprognosticeerd
B23: Parameters | E23: Hulpblad | H23: Op dit tabblad zijn de gehanteerde economische parameters opgenomen
B27: Blauwe gegevens | E27: Door u aan te passen input
B29: Zwarte gegevens | E29: Niet aan te passen parameters of formules
B32: Hoe dient het rekenmodel geactiveerd te worden?
B34: Stap 1: | C34: Schakel macro's in. Dit kan in Excel via tab 'bestand' en daarna "Opties voor Excel" en vervolgens het "Vertrouwenscentrum"
B36: Stap 2: | C36: Open het rekenmodel opnieuw als stap 1 nog niet was ingeschakeld
B38: Stap 3: | C38: Vul alle blauwe cellen in met de voor u relevante data
B41: Mocht de werking van het model niet het gewenste resultaat opleveren dan kunt u uiteraard contact opnemen met Finance Ideas:
B44: T: +31 (0)30 232 0480
B46: Finance Ideas B.V.
B47: Weg der Verenigde Naties 1
B48: 3527 KT Utrecht
B49: www.finance-ideas.nl

Sheet Cockpit
A1: =CONCATENATE("Business case t.b.v. financieringsaanvraag - ",B4,) -> Business case t.b.v. financieringsaanvraag - Wooncoöperatie X | C1: =CONCATENATE("Uitgangspunten ",B6) -> Uitgangspunten 2020
A2: Uitgangspunten
A3: Algemeen
A4: Wooncoöperatie | B4: Wooncoöperatie X
A6: Beginjaar prognose | B6: 2020
A7: Eindjaar prognose | B7: =B6+29 -> 2049
A9: Portefeuille | B9: Sociale huur | C9: Middenhuur
A10: Aantal verhuurde woningen | B10: 0 | C10: 0 | E10: =IF(B10+B11>50,"Let op, meer dan 50 sociale huurwoningen. Er dient verhuurderheffing te worden betaald","") -> 
A11: Aantal onverhuurde woningen | B11: 0 | C11: 0
A12: Totaal aantal woningen | B12: =SUM(B10:B11) -> 0 | C12: =SUM(C10:C11) -> 0
A14: WOZ-waarde per woning (prijspeil 1-1-2018) | B14: 0 | C14: 0
A15: Marktwaarde per woning (prijspeil 31-12-2019) | B15: 0 | C15: 0
A16: Renovatiebedrag per woning | B16: 0 | C16: 0
A17: Marktwaarde per woning na renovatie | B17: 0 | C17: 0
A19: Opbrengsten wooncoöperatie
A20: Huuropbrengsten per woning per maand (prijspeil 31-12-2019) | B20: 0 | C20: 0
A21: Opbrengsten uit servicekosten per woning per maand (prijspeil 31-12-2019) | B21: 0 | C21: 0
A22: Huurverhoging bovenop inflatie | B22: 0 | C22: 0
A23: Huurderving | B23: 0 | C23: 0
A25: Lasten wooncoöperatie
A26: Onderhoud per woning per jaar (prijspeil 31-12-2019) | B26: 0 | C26: 0 | D26: Let op! De MJOP kan ook op detailniveau worden ingevuld op het tabblad MJOP (2020-2049). Het onderhoud per woning wordt dan overschreven.
A27: Beheerlasten per woning per jaar (prijspeil 31-12-2019) | B27: 0 | C27: 0
A28: Verzekeringskosten per woning per jaar (prijspeil 31-12-2019) | B28: 0 | C28: 0
A29: Belasting per woning per jaar (prijspeil 31-12-2019) | B29: 0 | C29: 0
A30: Erfpachtcanon per woning per jaar (prijspeil 31-12-2019) | B30: 0 | C30: 0
A32: Investering
A33: Aankoop van woningen
A34: Aanschafprijs per woning | B34: 0 | C34: 0
A35: Overdrachtsbelasting per woning | B35: 0 | C35: 0
A36: Bijkomende kosten bij aankoop per woning | B36: 0 | C36: 0
A37: Totale investering (aankoop) | B37: =SUM(B34:B36)*B12 -> 0 | C37: =SUM(C34:C36)*C12 -> 0
A39: Nieuwbouw van woningen
A40: Stichtingskosten per woning | B40: 0 | C40: 0
A41: Bijkomende kosten bij nieuwbouw per woning | B41: 0 | C41: 0
A42: Totale investering (nieuwbouw) | B42: =SUM(B40:B41*B12) -> 0 | C42: =SUM(C40:C41*C12) -> 0
A44: Renovatie van woningen
A45: Renovatiebedrag (totaal) | B45: 0 | C45: 0
A46: Jaar van uitvoeren renovatie | B46: =B6 -> 2020 | C46: =B46+1 -> 2021 | D46: =C46+1 -> 2022
B47: 0.5 | C47: 0.3 | D47: 0.2
A48: Totale investering (renovatie) | B48: =B45 -> 0 | C48: =C45 -> 0
A50: Financiering
A51: Totale financieringsbehoefte | B51: =B37+B48+B42+C42+C37+C48 -> 0
A53: Bancaire LTV-eis | B53: 0.75
A54: Bancaire LLD-eis | B54: 0.06
A55: Verstrekt door bank | B55: =MIN(IF(B53*(B17*B12+C17*C12)>B63,B63,B53*(B17*B12+C17*C12)),IFERROR(('Prognose kasstromen'!E7-SUM('Prognose kasstromen'!E10:E13))/B54,0)) -> 0
A56: Type lening | B56: Annuïtair
A57: Rentepercentage eerste 10 jaar | B57: 0.02
A58: Rentepercentage ná herfinanciering | B58: 0.03
A59: Looptijd (in jaren) | B59: 30
B60: Werkelijke LTV | C60: Werkelijke LLD
B61: =B55/(B17*B12+C17*C12) ->  | C61: =IFERROR(('Prognose kasstromen'!E7-SUM('Prognose kasstromen'!E10:E14))/B55,0) -> 0
A63: Totale financieringsbehoefte | B63: =B37+B42+B48+C37+C42+C48 -> 0
A64: Bancaire lening | B64: =B55 -> 0
A65: Nog aan te trekken financiering | B65: =B63-B64 -> 0
A67: Overige vormen van financiering | B67: =B6 -> 2020 | C67: =B67+1 -> 2021 | D67: =C67+1 -> 2022 | E67: 2023 | F67: 2024 | G67: 2025 | H67: 2026 | I67: 2027 | J67: 2028 | K67: 2029 | L67: 2030 | M67: 2031 | N67: 2032 | O67: 2033 | P67: 2034 | Q67: 2035 | R67: 2036 | S67: 2037 | T67: 2038 | U67: 2039 | V67: 2040 | W67: 2041 | X67: 2042 | Y67: 2043 | Z67: 2044 | AA67: 2045 | AB67: 2046 | AC67: 2047 | AD67: 2048 | AE67: 2049
A68: Eigen inleg deelnemers | B68: 0
A69: Aflossing | B69: 0 | C69: 0 | D69: 0 | E69: 0 | F69: 0 | G69: 0 | H69: 0 | I69: 0 | J69: 0 | K69: 0 | L69: 0 | M69: 0 | N69: 0 | O69: 0 | P69: 0 | Q69: 0 | R69: 0 | S69: 0 | T69: 0 | U69: 0 | V69: 0 | W69: 0 | X69: 0 | Y69: 0 | Z69: 0 | AA69: 0 | AB69: 0 | AC69: 0 | AD69: 0 | AE69: 0
A70: Rentelasten | B70: 0 | C70: 0 | D70: 0 | E70: 0 | F70: 0 | G70: 0 | H70: 0 | I70: 0 | J70: 0 | K70: 0 | L70: 0 | M70: 0 | N70: 0 | O70: 0 | P70: 0 | Q70: 0 | R70: 0 | S70: 0 | T70: 0 | U70: 0 | V70: 0 | W70: 0 | X70: 0 | Y70: 0 | Z70: 0 | AA70: 0 | AB70: 0 | AC70: 0 | AD70: 0 | AE70: 0
A72: Ontvangen subsidies | B72: 0
A73: Aflossing | B73: 0 | C73: 0 | D73: 0 | E73: 0 | F73: 0 | G73: 0 | H73: 0 | I73: 0 | J73: 0 | K73: 0 | L73: 0 | M73: 0 | N73: 0 | O73: 0 | P73: 0 | Q73: 0 | R73: 0 | S73: 0 | T73: 0 | U73: 0 | V73: 0 | W73: 0 | X73: 0 | Y73: 0 | Z73: 0 | AA73: 0 | AB73: 0 | AC73: 0 | AD73: 0 | AE73: 0
A74: Rentelasten | B74: 0 | C74: 0 | D74: 0 | E74: 0 | F74: 0 | G74: 0 | H74: 0 | I74: 0 | J74: 0 | K74: 0 | L74: 0 | M74: 0 | N74: 0 | O74: 0 | P74: 0 | Q74: 0 | R74: 0 | S74: 0 | T74: 0 | U74: 0 | V74: 0 | W74: 0 | X74: 0 | Y74: 0 | Z74: 0 | AA74: 0 | AB74: 0 | AC74: 0 | AD74: 0 | AE74: 0
A76: Crowdfunding | B76: 0
A77: Aflossing | B77: 0 | C77: 0 | D77: 0 | E77: 0 | F77: 0 | G77: 0 | H77: 0 | I77: 0 | J77: 0 | K77: 0 | L77: 0 | M77: 0 | N77: 0 | O77: 0 | P77: 0 | Q77: 0 | R77: 0 | S77: 0 | T77: 0 | U77: 0 | X77: 0 | Y77: 0 | Z77: 0 | AA77: 0 | AB77: 0 | AC77: 0 | AD77: 0 | AE77: 0
A78: Rentelasten | B78: 0 | C78: 0 | D78: 0 | E78: 0 | F78: 0 | G78: 0 | H78: 0 | I78: 0 | J78: 0 | K78: 0 | L78: 0 | M78: 0 | N78: 0 | O78: 0 | P78: 0 | Q78: 0 | R78: 0 | S78: 0 | T78: 0 | U78: 0 | V78: 0 | W78: 0 | X78: 0 | Y78: 0 | Z78: 0 | AA78: 0 | AB78: 0 | AC78: 0 | AD78: 0 | AE78: 0
A80: Overig | B80: 0
A81: Aflossing | B81: 0 | C81: 0 | D81: 0 | E81: 0 | F81: 0 | G81: 0 | H81: 0 | I81: 0 | J81: 0 | K81: 0 | L81: 0 | M81: 0 | N81: 0 | O81: 0 | P81: 0 | Q81: 0 | R81: 0 | S81: 0 | T81: 0 | U81: 0 | V81: 0 | W81: 0 | X81: 0 | Y81: 0 | Z81: 0 | AA81: 0 | AB81: 0 | AC81: 0 | AD81: 0 | AE81: 0
A82: Rentelasten | B82: 0 | C82: 0 | D82: 0 | E82: 0 | F82: 0 | G82: 0 | H82: 0 | I82: 0 | J82: 0 | K82: 0 | L82: 0 | M82: 0 | N82: 0 | O82: 0 | P82: 0 | Q82: 0 | R82: 0 | S82: 0 | T82: 0 | U82: 0 | V82: 0 | W82: 0 | X82: 0 | Y82: 0 | Z82: 0 | AA82: 0 | AB82: 0 | AC82: 0 | AD82: 0 | AE82: 0
A85: Nog niet gefinancierd | B85: =MAX(B65-B68-B72-B76-B80,0) -> 0

Sheet MJOP (2020-2049)
A1: Meerjaren Onderhoudsprognose (MJOP) - Nominale bedragen
E2: =Cockpit!B6 -> 2020 | F2: =E2+1 -> 2021 | G2: =F2+1 -> 2022 | H2: 2023 | I2: 2024 | J2: 2025 | K2: 2026 | L2: 2027 | M2: 2028 | N2: 2029 | O2: 2030 | P2: 2031 | Q2: 2032 | R2: 2033 | S2: 2034 | T2: 2035 | U2: 2036 | V2: 2037 | W2: 2038 | X2: 2039 | Y2: 2040 | Z2: 2041 | AA2: 2042 | AB2: 2043 | AC2: 2044 | AD2: 2045 | AE2: 2046 | AF2: 2047 | AG2: 2048 | AH2: 2049
A3: Planmatig onderhoud | E3: 0 | F3: 0 | G3: 0 | H3: 0 | I3: 0 | J3: 0 | K3: 0 | L3: 0 | M3: 0 | N3: 0 | O3: 0 | P3: 0 | Q3: 0 | R3: 0 | S3: 0 | T3: 0 | U3: 0 | V3: 0 | W3: 0 | X3: 0 | Y3: 0 | Z3: 0 | AA3: 0 | AB3: 0 | AC3: 0 | AD3: 0 | AE3: 0 | AF3: 0 | AG3: 0 | AH3: 0
A4: Mutatieonderhoud | E4: 0 | F4: 0 | G4: 0 | H4: 0 | I4: 0 | J4: 0 | K4: 0 | L4: 0 | M4: 0 | N4: 0 | O4: 0 | P4: 0 | Q4: 0 | R4: 0 | S4: 0 | T4: 0 | U4: 0 | V4: 0 | W4: 0 | X4: 0 | Y4: 0 | Z4: 0 | AA4: 0 | AB4: 0 | AC4: 0 | AD4: 0 | AE4: 0 | AF4: 0 | AG4: 0 | AH4: 0
A5: Klachtenonderhoud | E5: 0 | F5: 0 | G5: 0 | H5: 0 | I5: 0 | J5: 0 | K5: 0 | L5: 0 | M5: 0 | N5: 0 | O5: 0 | P5: 0 | Q5: 0 | R5: 0 | S5: 0 | T5: 0 | U5: 0 | V5: 0 | W5: 0 | X5: 0 | Y5: 0 | Z5: 0 | AA5: 0 | AB5: 0 | AC5: 0 | AD5: 0 | AE5: 0 | AF5: 0 | AG5: 0 | AH5: 0
A6: Onderhoud 4 | E6: 0 | F6: 0 | G6: 0 | H6: 0 | I6: 0 | J6: 0 | K6: 0 | L6: 0 | M6: 0 | N6: 0 | O6: 0 | P6: 0 | Q6: 0 | R6: 0 | S6: 0 | T6: 0 | U6: 0 | V6: 0 | W6: 0 | X6: 0 | Y6: 0 | Z6: 0 | AA6: 0 | AB6: 0 | AC6: 0 | AD6: 0 | AE6: 0 | AF6: 0 | AG6: 0 | AH6: 0
A7: Onderhoud 5 | E7: 0 | F7: 0 | G7: 0 | H7: 0 | I7: 0 | J7: 0 | K7: 0 | L7: 0 | M7: 0 | N7: 0 | O7: 0 | P7: 0 | Q7: 0 | R7: 0 | S7: 0 | T7: 0 | U7: 0 | V7: 0 | W7: 0 | X7: 0 | Y7: 0 | Z7: 0 | AA7: 0 | AB7: 0 | AC7: 0 | AD7: 0 | AE7: 0 | AF7: 0 | AG7: 0 | AH7: 0
A8: Onderhoud 6 | E8: 0 | F8: 0 | G8: 0 | H8: 0 | I8: 0 | J8: 0 | K8: 0 | L8: 0 | M8: 0 | N8: 0 | O8: 0 | P8: 0 | Q8: 0 | R8: 0 | S8: 0 | T8: 0 | U8: 0 | V8: 0 | W8: 0 | X8: 0 | Y8: 0 | Z8: 0 | AA8: 0 | AB8: 0 | AC8: 0 | AD8: 0 | AE8: 0 | AF8: 0 | AG8: 0 | AH8: 0
A9: Onderhoud 7 | E9: 0 | F9: 0 | G9: 0 | H9: 0 | I9: 0 | J9: 0 | K9: 0 | L9: 0 | M9: 0 | N9: 0 | O9: 0 | P9: 0 | Q9: 0 | R9: 0 | S9: 0 | T9: 0 | U9: 0 | V9: 0 | W9: 0 | X9: 0 | Y9: 0 | Z9: 0 | AA9: 0 | AB9: 0 | AC9: 0 | AD9: 0 | AE9: 0 | AF9: 0 | AG9: 0 | AH9: 0
A10: Onderhoud 8 | E10: 0 | F10: 0 | G10: 0 | H10: 0 | I10: 0 | J10: 0 | K10: 0 | L10: 0 | M10: 0 | N10: 0 | O10: 0 | P10: 0 | Q10: 0 | R10: 0 | S10: 0 | T10: 0 | U10: 0 | V10: 0 | W10: 0 | X10: 0 | Y10: 0 | Z10: 0 | AA10: 0 | AB10: 0 | AC10: 0 | AD10: 0 | AE10: 0 | AF10: 0 | AG10: 0 | AH10: 0
A11: Onderhoud 9 | E11: 0 | F11: 0 | G11: 0 | H11: 0 | I11: 0 | J11: 0 | K11: 0 | L11: 0 | M11: 0 | N11: 0 | O11: 0 | P11: 0 | Q11: 0 | R11: 0 | S11: 0 | T11: 0 | U11: 0 | V11: 0 | W11: 0 | X11: 0 | Y11: 0 | Z11: 0 | AA11: 0 | AB11: 0 | AC11: 0 | AD11: 0 | AE11: 0 | AF11: 0 | AG11: 0 | AH11: 0
A12: Onderhoud 10 | E12: 0 | F12: 0 | G12: 0 | H12: 0 | I12: 0 | J12: 0 | K12: 0 | L12: 0 | M12: 0 | N12: 0 | O12: 0 | P12: 0 | Q12: 0 | R12: 0 | S12: 0 | T12: 0 | U12: 0 | V12: 0 | W12: 0 | X12: 0 | Y12: 0 | Z12: 0 | AA12: 0 | AB12: 0 | AC12: 0 | AD12: 0 | AE12: 0 | AF12: 0 | AG12: 0 | AH12: 0
A13: Onderhoud 11 | E13: 0 | F13: 0 | G13: 0 | H13: 0 | I13: 0 | J13: 0 | K13: 0 | L13: 0 | M13: 0 | N13: 0 | O13: 0 | P13: 0 | Q13: 0 | R13: 0 | S13: 0 | T13: 0 | U13: 0 | V13: 0 | W13: 0 | X13: 0 | Y13: 0 | Z13: 0 | AA13: 0 | AB13: 0 | AC13: 0 | AD13: 0 | AE13: 0 | AF13: 0 | AG13: 0 | AH13: 0
A14: Onderhoud 12 | E14: 0 | F14: 0 | G14: 0 | H14: 0 | I14: 0 | J14: 0 | K14: 0 | L14: 0 | M14: 0 | N14: 0 | O14: 0 | P14: 0 | Q14: 0 | R14: 0 | S14: 0 | T14: 0 | U14: 0 | V14: 0 | W14: 0 | X14: 0 | Y14: 0 | Z14: 0 | AA14: 0 | AB14: 0 | AC14: 0 | AD14: 0 | AE14: 0 | AF14: 0 | AG14: 0 | AH14: 0
A15: Onderhoud 13 | E15: 0 | F15: 0 | G15: 0 | H15: 0 | I15: 0 | J15: 0 | K15: 0 | L15: 0 | M15: 0 | N15: 0 | O15: 0 | P15: 0 | Q15: 0 | R15: 0 | S15: 0 | T15: 0 | U15: 0 | V15: 0 | W15: 0 | X15: 0 | Y15: 0 | Z15: 0 | AA15: 0 | AB15: 0 | AC15: 0 | AD15: 0 | AE15: 0 | AF15: 0 | AG15: 0 | AH15: 0
A16: Onderhoud 14 | E16: 0 | F16: 0 | G16: 0 | H16: 0 | I16: 0 | J16: 0 | K16: 0 | L16: 0 | M16: 0 | N16: 0 | O16: 0 | P16: 0 | Q16: 0 | R16: 0 | S16: 0 | T16: 0 | U16: 0 | V16: 0 | W16: 0 | X16: 0 | Y16: 0 | Z16: 0 | AA16: 0 | AB16: 0 | AC16: 0 | AD16: 0 | AE16: 0 | AF16: 0 | AG16: 0 | AH16: 0
A17: Onderhoud 15 | E17: 0 | F17: 0 | G17: 0 | H17: 0 | I17: 0 | J17: 0 | K17: 0 | L17: 0 | M17: 0 | N17: 0 | O17: 0 | P17: 0 | Q17: 0 | R17: 0 | S17: 0 | T17: 0 | U17: 0 | V17: 0 | W17: 0 | X17: 0 | Y17: 0 | Z17: 0 | AA17: 0 | AB17: 0 | AC17: 0 | AD17: 0 | AE17: 0 | AF17: 0 | AG17: 0 | AH17: 0
A18: Onderhoud 16 | E18: 0 | F18: 0 | G18: 0 | H18: 0 | I18: 0 | J18: 0 | K18: 0 | L18: 0 | M18: 0 | N18: 0 | O18: 0 | P18: 0 | Q18: 0 | R18: 0 | S18: 0 | T18: 0 | U18: 0 | V18: 0 | W18: 0 | X18: 0 | Y18: 0 | Z18: 0 | AA18: 0 | AB18: 0 | AC18: 0 | AD18: 0 | AE18: 0 | AF18: 0 | AG18: 0 | AH18: 0
A19: Onderhoud 17 | E19: 0 | F19: 0 | G19: 0 | H19: 0 | I19: 0 | J19: 0 | K19: 0 | L19: 0 | M19: 0 | N19: 0 | O19: 0 | P19: 0 | Q19: 0 | R19: 0 | S19: 0 | T19: 0 | U19: 0 | V19: 0 | W19: 0 | X19: 0 | Y19: 0 | Z19: 0 | AA19: 0 | AB19: 0 | AC19: 0 | AD19: 0 | AE19: 0 | AF19: 0 | AG19: 0 | AH19: 0
A20: Onderhoud 18 | E20: 0 | F20: 0 | G20: 0 | H20: 0 | I20: 0 | J20: 0 | K20: 0 | L20: 0 | M20: 0 | N20: 0 | O20: 0 | P20: 0 | Q20: 0 | R20: 0 | S20: 0 | T20: 0 | U20: 0 | V20: 0 | W20: 0 | X20: 0 | Y20: 0 | Z20: 0 | AA20: 0 | AB20: 0 | AC20: 0 | AD20: 0 | AE20: 0 | AF20: 0 | AG20: 0 | AH20: 0
A21: Onderhoud 19 | E21: 0 | F21: 0 | G21: 0 | H21: 0 | I21: 0 | J21: 0 | K21: 0 | L21: 0 | M21: 0 | N21: 0 | O21: 0 | P21: 0 | Q21: 0 | R21: 0 | S21: 0 | T21: 0 | U21: 0 | V21: 0 | W21: 0 | X21: 0 | Y21: 0 | Z21: 0 | AA21: 0 | AB21: 0 | AC21: 0 | AD21: 0 | AE21: 0 | AF21: 0 | AG21: 0 | AH21: 0
A22: Onderhoud 20 | E22: 0 | F22: 0 | G22: 0 | H22: 0 | I22: 0 | J22: 0 | K22: 0 | L22: 0 | M22: 0 | N22: 0 | O22: 0 | P22: 0 | Q22: 0 | R22: 0 | S22: 0 | T22: 0 | U22: 0 | V22: 0 | W22: 0 | X22: 0 | Y22: 0 | Z22: 0 | AA22: 0 | AB22: 0 | AC22: 0 | AD22: 0 | AE22: 0 | AF22: 0 | AG22: 0 | AH22: 0
A23: Onderhoud 21 | E23: 0 | F23: 0 | G23: 0 | H23: 0 | I23: 0 | J23: 0 | K23: 0 | L23: 0 | M23: 0 | N23: 0 | O23: 0 | P23: 0 | Q23: 0 | R23: 0 | S23: 0 | T23: 0 | U23: 0 | V23: 0 | W23: 0 | X23: 0 | Y23: 0 | Z23: 0 | AA23: 0 | AB23: 0 | AC23: 0 | AD23: 0 | AE23: 0 | AF23: 0 | AG23: 0 | AH23: 0
A24: Onderhoud 22 | E24: 0 | F24: 0 | G24: 0 | H24: 0 | I24: 0 | J24: 0 | K24: 0 | L24: 0 | M24: 0 | N24: 0 | O24: 0 | P24: 0 | Q24: 0 | R24: 0 | S24: 0 | T24: 0 | U24: 0 | V24: 0 | W24: 0 | X24: 0 | Y24: 0 | Z24: 0 | AA24: 0 | AB24: 0 | AC24: 0 | AD24: 0 | AE24: 0 | AF24: 0 | AG24: 0 | AH24: 0
A25: Onderhoud 23 | E25: 0 | F25: 0 | G25: 0 | H25: 0 | I25: 0 | J25: 0 | K25: 0 | L25: 0 | M25: 0 | N25: 0 | O25: 0 | P25: 0 | Q25: 0 | R25: 0 | S25: 0 | T25: 0 | U25: 0 | V25: 0 | W25: 0 | X25: 0 | Y25: 0 | Z25: 0 | AA25: 0 | AB25: 0 | AC25: 0 | AD25: 0 | AE25: 0 | AF25: 0 | AG25: 0 | AH25: 0
A26: Onderhoud 24 | E26: 0 | F26: 0 | G26: 0 | H26: 0 | I26: 0 | J26: 0 | K26: 0 | L26: 0 | M26: 0 | N26: 0 | O26: 0 | P26: 0 | Q26: 0 | R26: 0 | S26: 0 | T26: 0 | U26: 0 | V26: 0 | W26: 0 | X26: 0 | Y26: 0 | Z26: 0 | AA26: 0 | AB26: 0 | AC26: 0 | AD26: 0 | AE26: 0 | AF26: 0 | AG26: 0 | AH26: 0
A27: Onderhoud 25 | E27: 0 | F27: 0 | G27: 0 | H27: 0 | I27: 0 | J27: 0 | K27: 0 | L27: 0 | M27: 0 | N27: 0 | O27: 0 | P27: 0 | Q27: 0 | R27: 0 | S27: 0 | T27: 0 | U27: 0 | V27: 0 | W27: 0 | X27: 0 | Y27: 0 | Z27: 0 | AA27: 0 | AB27: 0 | AC27: 0 | AD27: 0 | AE27: 0 | AF27: 0 | AG27: 0 | AH27: 0
A28: Onderhoud 26 | E28: 0 | F28: 0 | G28: 0 | H28: 0 | I28: 0 | J28: 0 | K28: 0 | L28: 0 | M28: 0 | N28: 0 | O28: 0 | P28: 0 | Q28: 0 | R28: 0 | S28: 0 | T28: 0 | U28: 0 | V28: 0 | W28: 0 | X28: 0 | Y28: 0 | Z28: 0 | AA28: 0 | AB28: 0 | AC28: 0 | AD28: 0 | AE28: 0 | AF28: 0 | AG28: 0 | AH28: 0
A30: Totale onderhoudsuitgaven | E30: =SUM(E3:E28) -> 0 | F30: =SUM(F3:F28) -> 0 | G30: 0 | H30: 0 | I30: 0 | J30: 0 | K30: 0 | L30: 0 | M30: 0 | N30: 0 | O30: 0 | P30: 0 | Q30: 0 | R30: 0 | S30: 0 | T30: 0 | U30: 0 | V30: 0 | W30: 0 | X30: 0 | Y30: 0 | Z30: 0 | AA30: 0 | AB30: 0 | AC30: 0 | AD30: 0 | AE30: 0 | AF30: 0 | AG30: 0 | AH30: 0

Sheet Prognose kasstromen
A1: Kasstroomoverzicht
E2: =Cockpit!B6 -> 2020 | F2: =E2+1 -> 2021 | G2: =F2+1 -> 2022 | H2: 2023 | I2: 2024 | J2: 2025 | K2: 2026 | L2: 2027 | M2: 2028 | N2: 2029 | O2: 2030 | P2: 2031 | Q2: 2032 | R2: 2033 | S2: 2034 | T2: 2035 | U2: 2036 | V2: 2037 | W2: 2038 | X2: 2039 | Y2: 2040 | Z2: 2041 | AA2: =Z2+1 -> 2042 | AB2: 2043 | AC2: 2044 | AD2: 2045 | AE2: 2046 | AF2: 2047 | AG2: =AF2+1 -> 2048 | AH2: 2049
A4: Opbrengsten
A5: Huuropbrengsten | E5: =(1-Cockpit!B23)*(((Cockpit!B10*Cockpit!B20*12)*(1+Parameters!C4))+((Cockpit!C10*Cockpit!C20*12*(1+Parameters!C4)))) -> 0 | F5: =E5*(1+Parameters!D4) -> 0 | G5: =F5*(1+Parameters!E4) -> 0 | H5: =G5*(1+Parameters!F4) -> 0 | I5: =H5*(1+Parameters!G4) -> 0 | J5: =I5*(1+Parameters!H4) -> 0 | K5: =J5*(1+Parameters!I4) -> 0 | L5: =K5*(1+Parameters!J4) -> 0 | M5: =L5*(1+Parameters!K4) -> 0 | N5: =M5*(1+Parameters!L4) -> 0 | O5: =N5*(1+Parameters!M4) -> 0 | P5: =O5*(1+Parameters!N4) -> 0 | Q5: =P5*(1+Parameters!O4) -> 0 | R5: =Q5*(1+Parameters!P4) -> 0 | S5: =R5*(1+Parameters!Q4) -> 0 | T5: =S5*(1+Parameters!R4) -> 0 | U5: =T5*(1+Parameters!S4) -> 0 | V5: =U5*(1+Parameters!T4) -> 0 | W5: =V5*(1+Parameters!U4) -> 0 | X5: =W5*(1+Parameters!V4) -> 0 | Y5: =X5*(1+Parameters!W4) -> 0 | Z5: =Y5*(1+Parameters!X4) -> 0 | AA5: =Z5*(1+Parameters!Y4) -> 0 | AB5: =AA5*(1+Parameters!Z4) -> 0 | AC5: =AB5*(1+Parameters!AA4) -> 0 | AD5: =AC5*(1+Parameters!AB4) -> 0 | AE5: =AD5*(1+Parameters!AC4) -> 0 | AF5: =AE5*(1+Parameters!AD4) -> 0 | AG5: =AF5*(1+Parameters!AE4) -> 0 | AH5: =AG5*(1+Parameters!AF4) -> 0
A6: Opbrengsten uit servicekosten | E6: =(1-Cockpit!B23)*((Cockpit!B10*Cockpit!B21*12)*(1+Parameters!C4)+(Cockpit!C10*Cockpit!C21*12)*(1+Parameters!C4)) -> 0 | F6: =E6*(1+Parameters!E3) -> 0 | G6: =F6*(1+Parameters!F3) -> 0 | H6: =G6*(1+Parameters!G3) -> 0 | I6: =H6*(1+Parameters!H3) -> 0 | J6: =I6*(1+Parameters!I3) -> 0 | K6: =J6*(1+Parameters!J3) -> 0 | L6: =K6*(1+Parameters!K3) -> 0 | M6: =L6*(1+Parameters!L3) -> 0 | N6: =M6*(1+Parameters!M3) -> 0 | O6: =N6*(1+Parameters!N3) -> 0 | P6: =O6*(1+Parameters!O3) -> 0 | Q6: =P6*(1+Parameters!P3) -> 0 | R6: =Q6*(1+Parameters!Q3) -> 0 | S6: =R6*(1+Parameters!R3) -> 0 | T6: =S6*(1+Parameters!S3) -> 0 | U6: =T6*(1+Parameters!T3) -> 0 | V6: =U6*(1+Parameters!U3) -> 0 | W6: =V6*(1+Parameters!V3) -> 0 | X6: =W6*(1+Parameters!W3) -> 0 | Y6: =X6*(1+Parameters!X3) -> 0 | Z6: =Y6*(1+Parameters!Y3) -> 0 | AA6: =Z6*(1+Parameters!Z3) -> 0 | AB6: =AA6*(1+Parameters!AA3) -> 0 | AC6: =AB6*(1+Parameters!AB3) -> 0 | AD6: =AC6*(1+Parameters!AC3) -> 0 | AE6: =AD6*(1+Parameters!AD3) -> 0 | AF6: =AE6*(1+Parameters!AE3) -> 0 | AG6: =AF6*(1+Parameters!AF3) -> 0 | AH6: =AG6*(1+Parameters!AG3) -> 0
A7: Totaal opbrengsten | E7: =SUM(E5:E6) -> 0 | F7: =SUM(F5:F6) -> 0 | G7: 0 | H7: 0 | I7: 0 | J7: 0 | K7: 0 | L7: 0 | M7: 0 | N7: 0 | O7: 0 | P7: 0 | Q7: 0 | R7: 0 | S7: 0 | T7: 0 | U7: 0 | V7: 0 | W7: 0 | X7: 0 | Y7: 0 | Z7: 0 | AA7: 0 | AB7: 0 | AC7: 0 | AD7: 0 | AE7: 0 | AF7: 0 | AG7: 0 | AH7: 0
A9: Lasten
A10: Onderhoudslasten | E10: =IF(SUM('MJOP (2020-2049)'!E30:AH30)=0,(Cockpit!B12)*Cockpit!B26*(1+Parameters!D6)+(Cockpit!C12)*Cockpit!C26*(1+Parameters!D6),'MJOP (2020-2049)'!E30*(1+Parameters!D6)) -> 0 | F10: =IF(SUM('MJOP (2020-2049)'!E30:AH30)=0,E10*(1+Parameters!E6),'MJOP (2020-2049)'!F30*(1+Parameters!E6)) -> 0 | G10: =IF(SUM('MJOP (2020-2049)'!F30:AI30)=0,F10*(1+Parameters!F6),'MJOP (2020-2049)'!G30*(1+Parameters!F6)) -> 0 | H10: =IF(SUM('MJOP (2020-2049)'!G30:AJ30)=0,G10*(1+Parameters!G6),'MJOP (2020-2049)'!H30*(1+Parameters!G6)) -> 0 | I10: =IF(SUM('MJOP (2020-2049)'!H30:AK30)=0,H10*(1+Parameters!H6),'MJOP (2020-2049)'!I30*(1+Parameters!H6)) -> 0 | J10: =IF(SUM('MJOP (2020-2049)'!I30:AL30)=0,I10*(1+Parameters!I6),'MJOP (2020-2049)'!J30*(1+Parameters!I6)) -> 0 | K10: =IF(SUM('MJOP (2020-2049)'!J30:AM30)=0,J10*(1+Parameters!J6),'MJOP (2020-2049)'!K30*(1+Parameters!J6)) -> 0 | L10: =IF(SUM('MJOP (2020-2049)'!K30:AN30)=0,K10*(1+Parameters!K6),'MJOP (2020-2049)'!L30*(1+Parameters!K6)) -> 0 | M10: =IF(SUM('MJOP (2020-2049)'!L30:AO30)=0,L10*(1+Parameters!L6),'MJOP (2020-2049)'!M30*(1+Parameters!L6)) -> 0 | N10: =IF(SUM('MJOP (2020-2049)'!M30:AP30)=0,M10*(1+Parameters!M6),'MJOP (2020-2049)'!N30*(1+Parameters!M6)) -> 0 | O10: =IF(SUM('MJOP (2020-2049)'!N30:AQ30)=0,N10*(1+Parameters!N6),'MJOP (2020-2049)'!O30*(1+Parameters!N6)) -> 0 | P10: =IF(SUM('MJOP (2020-2049)'!O30:AR30)=0,O10*(1+Parameters!O6),'MJOP (2020-2049)'!P30*(1+Parameters!O6)) -> 0 | Q10: =IF(SUM('MJOP (2020-2049)'!P30:AS30)=0,P10*(1+Parameters!P6),'MJOP (2020-2049)'!Q30*(1+Parameters!P6)) -> 0 | R10: =IF(SUM('MJOP (2020-2049)'!Q30:AT30)=0,Q10*(1+Parameters!Q6),'MJOP (2020-2049)'!R30*(1+Parameters!Q6)) -> 0 | S10: =IF(SUM('MJOP (2020-2049)'!R30:AU30)=0,R10*(1+Parameters!R6),'MJOP (2020-2049)'!S30*(1+Parameters!R6)) -> 0 | T10: =IF(SUM('MJOP (2020-2049)'!S30:AV30)=0,S10*(1+Parameters!S6),'MJOP (2020-2049)'!T30*(1+Parameters!S6)) -> 0 | U10: =IF(SUM('MJOP (2020-2049)'!T30:AW30)=0,T10*(1+Parameters!T6),'MJOP (2020-2049)'!U30*(1+Parameters!T6)) -> 0 | V10: =IF(SUM('MJOP (2020-2049)'!U30:AX30)=0,U10*(1+Parameters!U6),'MJOP (2020-2049)'!V30*(1+Parameters!U6)) -> 0 | W10: =IF(SUM('MJOP (2020-2049)'!V30:AY30)=0,V10*(1+Parameters!V6),'MJOP (2020-2049)'!W30*(1+Parameters!V6)) -> 0 | X10: =IF(SUM('MJOP (2020-2049)'!W30:AZ30)=0,W10*(1+Parameters!W6),'MJOP (2020-2049)'!X30*(1+Parameters!W6)) -> 0 | Y10: =IF(SUM('MJOP (2020-2049)'!X30:BA30)=0,X10*(1+Parameters!X6),'MJOP (2020-2049)'!Y30*(1+Parameters!X6)) -> 0 | Z10: =IF(SUM('MJOP (2020-2049)'!Y30:BB30)=0,Y10*(1+Parameters!Y6),'MJOP (2020-2049)'!Z30*(1+Parameters!Y6)) -> 0 | AA10: =IF(SUM('MJOP (2020-2049)'!Z30:BC30)=0,Z10*(1+Parameters!Z6),'MJOP (2020-2049)'!AA30*(1+Parameters!Z6)) -> 0 | AB10: =IF(SUM('MJOP (2020-2049)'!AA30:BD30)=0,AA10*(1+Parameters!AA6),'MJOP (2020-2049)'!AB30*(1+Parameters!AA6)) -> 0 | AC10: =IF(SUM('MJOP (2020-2049)'!AB30:BE30)=0,AB10*(1+Parameters!AB6),'MJOP (2020-2049)'!AC30*(1+Parameters!AB6)) -> 0 | AD10: =IF(SUM('MJOP (2020-2049)'!AC30:BF30)=0,AC10*(1+Parameters!AC6),'MJOP (2020-2049)'!AD30*(1+Parameters!AC6)) -> 0 | AE10: =IF(SUM('MJOP (2020-2049)'!AD30:BG30)=0,AD10*(1+Parameters!AD6),'MJOP (2020-2049)'!AE30*(1+Parameters!AD6)) -> 0 | AF10: =IF(SUM('MJOP (2020-2049)'!AE30:BH30)=0,AE10*(1+Parameters!AE6),'MJOP (2020-2049)'!AF30*(1+Parameters!AE6)) -> 0 | AG10: =IF(SUM('MJOP (2020-2049)'!AF30:BI30)=0,AF10*(1+Parameters!AF6),'MJOP (2020-2049)'!AG30*(1+Parameters!AF6)) -> 0 | AH10: =IF(SUM('MJOP (2020-2049)'!AG30:BJ30)=0,AG10*(1+Parameters!AG6),'MJOP (2020-2049)'!AH30*(1+Parameters!AG6)) -> 0
A11: Beheerlasten | E11: =((Cockpit!B12)*Cockpit!B27+(Cockpit!C12)*Cockpit!C27)*(1+Parameters!D5) -> 0 | F11: =E11*(1+Parameters!E5) -> 0 | G11: =F11*(1+Parameters!F5) -> 0 | H11: =G11*(1+Parameters!G5) -> 0 | I11: =H11*(1+Parameters!H5) -> 0 | J11: =I11*(1+Parameters!I5) -> 0 | K11: =J11*(1+Parameters!J5) -> 0 | L11: =K11*(1+Parameters!K5) -> 0 | M11: =L11*(1+Parameters!L5) -> 0 | N11: =M11*(1+Parameters!M5) -> 0 | O11: =N11*(1+Parameters!N5) -> 0 | P11: =O11*(1+Parameters!O5) -> 0 | Q11: =P11*(1+Parameters!P5) -> 0 | R11: =Q11*(1+Parameters!Q5) -> 0 | S11: =R11*(1+Parameters!R5) -> 0 | T11: =S11*(1+Parameters!S5) -> 0 | U11: =T11*(1+Parameters!T5) -> 0 | V11: =U11*(1+Parameters!U5) -> 0 | W11: =V11*(1+Parameters!V5) -> 0 | X11: =W11*(1+Parameters!W5) -> 0 | Y11: =X11*(1+Parameters!X5) -> 0 | Z11: =Y11*(1+Parameters!Y5) -> 0 | AA11: =Z11*(1+Parameters!Z5) -> 0 | AB11: =AA11*(1+Parameters!AA5) -> 0 | AC11: =AB11*(1+Parameters!AB5) -> 0 | AD11: =AC11*(1+Parameters!AC5) -> 0 | AE11: =AD11*(1+Parameters!AD5) -> 0 | AF11: =AE11*(1+Parameters!AE5) -> 0 | AG11: =AF11*(1+Parameters!AF5) -> 0 | AH11: =AG11*(1+Parameters!AG5) -> 0
A12: Verhuurderheffing | E12: =IF(Cockpit!$B$12>50,Cockpit!$B$14*Parameters!D8*Cockpit!$B$12,0)*Parameters!D13+(Cockpit!B45*Cockpit!B47*((SUMPRODUCT(Cockpit!$B$12:$C$12,Cockpit!$B$17:$C$17)-SUMPRODUCT(Cockpit!$B$12:$C$12,Cockpit!$B$15:$C$15))/SUMPRODUCT(Cockpit!$B$12:$C$12,Cockpit!$B$15:$C$15)))*Parameters!D8 ->  | F12: =IF(Cockpit!$B$12>50,Cockpit!$B$14*Parameters!E8*Cockpit!$B$12,0)*Parameters!E13+(Cockpit!B45*Cockpit!B47*((SUMPRODUCT(Cockpit!$B$12:$C$12,Cockpit!$B$17:$C$17)-SUMPRODUCT(Cockpit!$B$12:$C$12,Cockpit!$B$15:$C$15))/SUMPRODUCT(Cockpit!$B$12:$C$12,Cockpit!$B$15:$C$15)))*Parameters!D8+(Cockpit!B45*Cockpit!C47*((SUMPRODUCT(Cockpit!$B$12:$C$12,Cockpit!$B$17:$C$17)-SUMPRODUCT(Cockpit!$B$12:$C$12,Cockpit!$B$15:$C$15))/SUMPRODUCT(Cockpit!$B$12:$C$12,Cockpit!$B$15:$C$15)))*Parameters!E8 ->  | G12: =IF(Cockpit!$B$12>50,Cockpit!$B$14*Parameters!F8*Cockpit!$B$12,0)*Parameters!F13+(Cockpit!B45*Cockpit!B47*((SUMPRODUCT(Cockpit!$B$12:$C$12,Cockpit!$B$17:$C$17)-SUMPRODUCT(Cockpit!$B$12:$C$12,Cockpit!$B$15:$C$15))/SUMPRODUCT(Cockpit!$B$12:$C$12,Cockpit!$B$15:$C$15)))*Parameters!D8+(Cockpit!B45*Cockpit!C47*((SUMPRODUCT(Cockpit!$B$12:$C$12,Cockpit!$B$17:$C$17)-SUMPRODUCT(Cockpit!$B$12:$C$12,Cockpit!$B$15:$C$15))/SUMPRODUCT(Cockpit!$B$12:$C$12,Cockpit!$B$15:$C$15)))*Parameters!E8+(Cockpit!B45*Cockpit!D47*((SUMPRODUCT(Cockpit!$B$12:$C$12,Cockpit!$B$17:$C$17)-SUMPRODUCT(Cockpit!$B$12:$C$12,Cockpit!$B$15:$C$15))/SUMPRODUCT(Cockpit!$B$12:$C$12,Cockpit!$B$15:$C$15)))*Parameters!F8 ->  | H12: =IF(Cockpit!$B$12>50,Cockpit!$B$14*Parameters!G8*Cockpit!$B$12,0)*Parameters!G13+(Cockpit!C45*Cockpit!C47*((SUMPRODUCT(Cockpit!$B$12:$C$12,Cockpit!$B$17:$C$17)-SUMPRODUCT(Cockpit!$B$12:$C$12,Cockpit!$B$15:$C$15))/SUMPRODUCT(Cockpit!$B$12:$C$12,Cockpit!$B$15:$C$15)))*Parameters!E8+(Cockpit!C45*Cockpit!D47*((SUMPRODUCT(Cockpit!$B$12:$C$12,Cockpit!$B$17:$C$17)-SUMPRODUCT(Cockpit!$B$12:$C$12,Cockpit!$B$15:$C$15))/SUMPRODUCT(Cockpit!$B$12:$C$12,Cockpit!$B$15:$C$15)))*Parameters!F8+(Cockpit!C45*Cockpit!E47*((SUMPRODUCT(Cockpit!$B$12:$C$12,Cockpit!$B$17:$C$17)-SUMPRODUCT(Cockpit!$B$12:$C$12,Cockpit!$B$15:$C$15))/SUMPRODUCT(Cockpit!$B$12:$C$12,Cockpit!$B$15:$C$15)))*Parameters!G8 ->  | I12: =IF(Cockpit!$B$12>50,Cockpit!$B$14*Parameters!H8*Cockpit!$B$12,0)*Parameters!H13+(Cockpit!D45*Cockpit!D47*((SUMPRODUCT(Cockpit!$B$12:$C$12,Cockpit!$B$17:$C$17)-SUMPRODUCT(Cockpit!$B$12:$C$12,Cockpit!$B$15:$C$15))/SUMPRODUCT(Cockpit!$B$12:$C$12,Cockpit!$B$15:$C$15)))*Parameters!F8+(Cockpit!D45*Cockpit!E47*((SUMPRODUCT(Cockpit!$B$12:$C$12,Cockpit!$B$17:$C$17)-SUMPRODUCT(Cockpit!$B$12:$C$12,Cockpit!$B$15:$C$15))/SUMPRODUCT(Cockpit!$B$12:$C$12,Cockpit!$B$15:$C$15)))*Parameters!G8+(Cockpit!D45*Cockpit!F47*((SUMPRODUCT(Cockpit!$B$12:$C$12,Cockpit!$B$17:$C$17)-SUMPRODUCT(Cockpit!$B$12:$C$12,Cockpit!$B$15:$C$15))/SUMPRODUCT(Cockpit!$B$12:$C$12,Cockpit!$B$15:$C$15)))*Parameters!H8 ->  | J12: =IF(Cockpit!$B$12>50,Cockpit!$B$14*Parameters!I8*Cockpit!$B$12,0)*Parameters!I13+(Cockpit!E45*Cockpit!E47*((SUMPRODUCT(Cockpit!$B$12:$C$12,Cockpit!$B$17:$C$17)-SUMPRODUCT(Cockpit!$B$12:$C$12,Cockpit!$B$15:$C$15))/SUMPRODUCT(Cockpit!$B$12:$C$12,Cockpit!$B$15:$C$15)))*Parameters!G8+(Cockpit!E45*Cockpit!F47*((SUMPRODUCT(Cockpit!$B$12:$C$12,Cockpit!$B$17:$C$17)-SUMPRODUCT(Cockpit!$B$12:$C$12,Cockpit!$B$15:$C$15))/SUMPRODUCT(Cockpit!$B$12:$C$12,Cockpit!$B$15:$C$15)))*Parameters!H8+(Cockpit!E45*Cockpit!G47*((SUMPRODUCT(Cockpit!$B$12:$C$12,Cockpit!$B$17:$C$17)-SUMPRODUCT(Cockpit!$B$12:$C$12,Cockpit!$B$15:$C$15))/SUMPRODUCT(Cockpit!$B$12:$C$12,Cockpit!$B$15:$C$15)))*Parameters!I8 ->  | K12: =IF(Cockpit!$B$12>50,Cockpit!$B$14*Parameters!J8*Cockpit!$B$12,0)*Parameters!J13+(Cockpit!F45*Cockpit!F47*((SUMPRODUCT(Cockpit!$B$12:$C$12,Cockpit!$B$17:$C$17)-SUMPRODUCT(Cockpit!$B$12:$C$12,Cockpit!$B$15:$C$15))/SUMPRODUCT(Cockpit!$B$12:$C$12,Cockpit!$B$15:$C$15)))*Parameters!H8+(Cockpit!F45*Cockpit!G47*((SUMPRODUCT(Cockpit!$B$12:$C$12,Cockpit!$B$17:$C$17)-SUMPRODUCT(Cockpit!$B$12:$C$12,Cockpit!$B$15:$C$15))/SUMPRODUCT(Cockpit!$B$12:$C$12,Cockpit!$B$15:$C$15)))*Parameters!I8+(Cockpit!F45*Cockpit!H47*((SUMPRODUCT(Cockpit!$B$12:$C$12,Cockpit!$B$17:$C$17)-SUMPRODUCT(Cockpit!$B$12:$C$12,Cockpit!$B$15:$C$15))/SUMPRODUCT(Cockpit!$B$12:$C$12,Cockpit!$B$15:$C$15)))*Parameters!J8 ->  | L12: =IF(Cockpit!$B$12>50,Cockpit!$B$14*Parameters!K8*Cockpit!$B$12,0)*Parameters!K13+(Cockpit!G45*Cockpit!G47*((SUMPRODUCT(Cockpit!$B$12:$C$12,Cockpit!$B$17:$C$17)-SUMPRODUCT(Cockpit!$B$12:$C$12,Cockpit!$B$15:$C$15))/SUMPRODUCT(Cockpit!$B$12:$C$12,Cockpit!$B$15:$C$15)))*Parameters!I8+(Cockpit!G45*Cockpit!H47*((SUMPRODUCT(Cockpit!$B$12:$C$12,Cockpit!$B$17:$C$17)-SUMPRODUCT(Cockpit!$B$12:$C$12,Cockpit!$B$15:$C$15))/SUMPRODUCT(Cockpit!$B$12:$C$12,Cockpit!$B$15:$C$15)))*Parameters!J8+(Cockpit!G45*Cockpit!I47*((SUMPRODUCT(Cockpit!$B$12:$C$12,Cockpit!$B$17:$C$17)-SUMPRODUCT(Cockpit!$B$12:$C$12,Cockpit!$B$15:$C$15))/SUMPRODUCT(Cockpit!$B$12:$C$12,Cockpit!$B$15:$C$15)))*Parameters!K8 ->  | M12: =IF(Cockpit!$B$12>50,Cockpit!$B$14*Parameters!L8*Cockpit!$B$12,0)*Parameters!L13+(Cockpit!H45*Cockpit!H47*((SUMPRODUCT(Cockpit!$B$12:$C$12,Cockpit!$B$17:$C$17)-SUMPRODUCT(Cockpit!$B$12:$C$12,Cockpit!$B$15:$C$15))/SUMPRODUCT(Cockpit!$B$12:$C$12,Cockpit!$B$15:$C$15)))*Parameters!J8+(Cockpit!H45*Cockpit!I47*((SUMPRODUCT(Cockpit!$B$12:$C$12,Cockpit!$B$17:$C$17)-SUMPRODUCT(Cockpit!$B$12:$C$12,Cockpit!$B$15:$C$15))/SUMPRODUCT(Cockpit!$B$12:$C$12,Cockpit!$B$15:$C$15)))*Parameters!K8+(Cockpit!H45*Cockpit!J47*((SUMPRODUCT(Cockpit!$B$12:$C$12,Cockpit!$B$17:$C$17)-SUMPRODUCT(Cockpit!$B$12:$C$12,Cockpit!$B$15:$C$15))/SUMPRODUCT(Cockpit!$B$12:$C$12,Cockpit!$B$15:$C$15)))*Parameters!L8 ->  | N12: =IF(Cockpit!$B$12>50,Cockpit!$B$14*Parameters!M8*Cockpit!$B$12,0)*Parameters!M13+(Cockpit!I45*Cockpit!I47*((SUMPRODUCT(Cockpit!$B$12:$C$12,Cockpit!$B$17:$C$17)-SUMPRODUCT(Cockpit!$B$12:$C$12,Cockpit!$B$15:$C$15))/SUMPRODUCT(Cockpit!$B$12:$C$12,Cockpit!$B$15:$C$15)))*Parameters!K8+(Cockpit!I45*Cockpit!J47*((SUMPRODUCT(Cockpit!$B$12:$C$12,Cockpit!$B$17:$C$17)-SUMPRODUCT(Cockpit!$B$12:$C$12,Cockpit!$B$15:$C$15))/SUMPRODUCT(Cockpit!$B$12:$C$12,Cockpit!$B$15:$C$15)))*Parameters!L8+(Cockpit!I45*Cockpit!K47*((SUMPRODUCT(Cockpit!$B$12:$C$12,Cockpit!$B$17:$C$17)-SUMPRODUCT(Cockpit!$B$12:$C$12,Cockpit!$B$15:$C$15))/SUMPRODUCT(Cockpit!$B$12:$C$12,Cockpit!$B$15:$C$15)))*Parameters!M8 ->  | O12: =IF(Cockpit!$B$12>50,Cockpit!$B$14*Parameters!N8*Cockpit!$B$12,0)*Parameters!N13+(Cockpit!J45*Cockpit!J47*((SUMPRODUCT(Cockpit!$B$12:$C$12,Cockpit!$B$17:$C$17)-SUMPRODUCT(Cockpit!$B$12:$C$12,Cockpit!$B$15:$C$15))/SUMPRODUCT(Cockpit!$B$12:$C$12,Cockpit!$B$15:$C$15)))*Parameters!L8+(Cockpit!J45*Cockpit!K47*((SUMPRODUCT(Cockpit!$B$12:$C$12,Cockpit!$B$17:$C$17)-SUMPRODUCT(Cockpit!$B$12:$C$12,Cockpit!$B$15:$C$15))/SUMPRODUCT(Cockpit!$B$12:$C$12,Cockpit!$B$15:$C$15)))*Parameters!M8+(Cockpit!J45*Cockpit!L47*((SUMPRODUCT(Cockpit!$B$12:$C$12,Cockpit!$B$17:$C$17)-SUMPRODUCT(Cockpit!$B$12:$C$12,Cockpit!$B$15:$C$15))/SUMPRODUCT(Cockpit!$B$12:$C$12,Cockpit!$B$15:$C$15)))*Parameters!N8 ->  | P12: =IF(Cockpit!$B$12>50,Cockpit!$B$14*Parameters!O8*Cockpit!$B$12,0)*Parameters!O13+(Cockpit!K45*Cockpit!K47*((SUMPRODUCT(Cockpit!$B$12:$C$12,Cockpit!$B$17:$C$17)-SUMPRODUCT(Cockpit!$B$12:$C$12,Cockpit!$B$15:$C$15))/SUMPRODUCT(Cockpit!$B$12:$C$12,Cockpit!$B$15:$C$15)))*Parameters!M8+(Cockpit!K45*Cockpit!L47*((SUMPRODUCT(Cockpit!$B$12:$C$12,Cockpit!$B$17:$C$17)-SUMPRODUCT(Cockpit!$B$12:$C$12,Cockpit!$B$15:$C$15))/SUMPRODUCT(Cockpit!$B$12:$C$12,Cockpit!$B$15:$C$15)))*Parameters!N8+(Cockpit!K45*Cockpit!M47*((SUMPRODUCT(Cockpit!$B$12:$C$12,Cockpit!$B$17:$C$17)-SUMPRODUCT(Cockpit!$B$12:$C$12,Cockpit!$B$15:$C$15))/SUMPRODUCT(Cockpit!$B$12:$C$12,Cockpit!$B$15:$C$15)))*Parameters!O8 ->  | Q12: =IF(Cockpit!$B$12>50,Cockpit!$B$14*Parameters!P8*Cockpit!$B$12,0)*Parameters!P13+(Cockpit!L45*Cockpit!L47*((SUMPRODUCT(Cockpit!$B$12:$C$12,Cockpit!$B$17:$C$17)-SUMPRODUCT(Cockpit!$B$12:$C$12,Cockpit!$B$15:$C$15))/SUMPRODUCT(Cockpit!$B$12:$C$12,Cockpit!$B$15:$C$15)))*Parameters!N8+(Cockpit!L45*Cockpit!M47*((SUMPRODUCT(Cockpit!$B$12:$C$12,Cockpit!$B$17:$C$17)-SUMPRODUCT(Cockpit!$B$12:$C$12,Cockpit!$B$15:$C$15))/SUMPRODUCT(Cockpit!$B$12:$C$12,Cockpit!$B$15:$C$15)))*Parameters!O8+(Cockpit!L45*Cockpit!N47*((SUMPRODUCT(Cockpit!$B$12:$C$12,Cockpit!$B$17:$C$17)-SUMPRODUCT(Cockpit!$B$12:$C$12,Cockpit!$B$15:$C$15))/SUMPRODUCT(Cockpit!$B$12:$C$12,Cockpit!$B$15:$C$15)))*Parameters!P8 ->  | R12: =IF(Cockpit!$B$12>50,Cockpit!$B$14*Parameters!Q8*Cockpit!$B$12,0)*Parameters!Q13+(Cockpit!M45*Cockpit!M47*((SUMPRODUCT(Cockpit!$B$12:$C$12,Cockpit!$B$17:$C$17)-SUMPRODUCT(Cockpit!$B$12:$C$12,Cockpit!$B$15:$C$15))/SUMPRODUCT(Cockpit!$B$12:$C$12,Cockpit!$B$15:$C$15)))*Parameters!O8+(Cockpit!M45*Cockpit!N47*((SUMPRODUCT(Cockpit!$B$12:$C$12,Cockpit!$B$17:$C$17)-SUMPRODUCT(Cockpit!$B$12:$C$12,Cockpit!$B$15:$C$15))/SUMPRODUCT(Cockpit!$B$12:$C$12,Cockpit!$B$15:$C$15)))*Parameters!P8+(Cockpit!M45*Cockpit!O47*((SUMPRODUCT(Cockpit!$B$12:$C$12,Cockpit!$B$17:$C$17)-SUMPRODUCT(Cockpit!$B$12:$C$12,Cockpit!$B$15:$C$15))/SUMPRODUCT(Cockpit!$B$12:$C$12,Cockpit!$B$15:$C$15)))*Parameters!Q8 ->  | S12: =IF(Cockpit!$B$12>50,Cockpit!$B$14*Parameters!R8*Cockpit!$B$12,0)*Parameters!R13+(Cockpit!N45*Cockpit!N47*((SUMPRODUCT(Cockpit!$B$12:$C$12,Cockpit!$B$17:$C$17)-SUMPRODUCT(Cockpit!$B$12:$C$12,Cockpit!$B$15:$C$15))/SUMPRODUCT(Cockpit!$B$12:$C$12,Cockpit!$B$15:$C$15)))*Parameters!P8+(Cockpit!N45*Cockpit!O47*((SUMPRODUCT(Cockpit!$B$12:$C$12,Cockpit!$B$17:$C$17)-SUMPRODUCT(Cockpit!$B$12:$C$12,Cockpit!$B$15:$C$15))/SUMPRODUCT(Cockpit!$B$12:$C$12,Cockpit!$B$15:$C$15)))*Parameters!Q8+(Cockpit!N45*Cockpit!P47*((SUMPRODUCT(Cockpit!$B$12:$C$12,Cockpit!$B$17:$C$17)-SUMPRODUCT(Cockpit!$B$12:$C$12,Cockpit!$B$15:$C$15))/SUMPRODUCT(Cockpit!$B$12:$C$12,Cockpit!$B$15:$C$15)))*Parameters!R8 ->  | T12: =IF(Cockpit!$B$12>50,Cockpit!$B$14*Parameters!S8*Cockpit!$B$12,0)*Parameters!S13+(Cockpit!O45*Cockpit!O47*((SUMPRODUCT(Cockpit!$B$12:$C$12,Cockpit!$B$17:$C$17)-SUMPRODUCT(Cockpit!$B$12:$C$12,Cockpit!$B$15:$C$15))/SUMPRODUCT(Cockpit!$B$12:$C$12,Cockpit!$B$15:$C$15)))*Parameters!Q8+(Cockpit!O45*Cockpit!P47*((SUMPRODUCT(Cockpit!$B$12:$C$12,Cockpit!$B$17:$C$17)-SUMPRODUCT(Cockpit!$B$12:$C$12,Cockpit!$B$15:$C$15))/SUMPRODUCT(Cockpit!$B$12:$C$12,Cockpit!$B$15:$C$15)))*Parameters!R8+(Cockpit!O45*Cockpit!Q47*((SUMPRODUCT(Cockpit!$B$12:$C$12,Cockpit!$B$17:$C$17)-SUMPRODUCT(Cockpit!$B$12:$C$12,Cockpit!$B$15:$C$15))/SUMPRODUCT(Cockpit!$B$12:$C$12,Cockpit!$B$15:$C$15)))*Parameters!S8 ->  | U12: =IF(Cockpit!$B$12>50,Cockpit!$B$14*Parameters!T8*Cockpit!$B$12,0)*Parameters!T13+(Cockpit!P45*Cockpit!P47*((SUMPRODUCT(Cockpit!$B$12:$C$12,Cockpit!$B$17:$C$17)-SUMPRODUCT(Cockpit!$B$12:$C$12,Cockpit!$B$15:$C$15))/SUMPRODUCT(Cockpit!$B$12:$C$12,Cockpit!$B$15:$C$15)))*Parameters!R8+(Cockpit!P45*Cockpit!Q47*((SUMPRODUCT(Cockpit!$B$12:$C$12,Cockpit!$B$17:$C$17)-SUMPRODUCT(Cockpit!$B$12:$C$12,Cockpit!$B$15:$C$15))/SUMPRODUCT(Cockpit!$B$12:$C$12,Cockpit!$B$15:$C$15)))*Parameters!S8+(Cockpit!P45*Cockpit!R47*((SUMPRODUCT(Cockpit!$B$12:$C$12,Cockpit!$B$17:$C$17)-SUMPRODUCT(Cockpit!$B$12:$C$12,Cockpit!$B$15:$C$15))/SUMPRODUCT(Cockpit!$B$12:$C$12,Cockpit!$B$15:$C$15)))*Parameters!T8 ->  | V12: =IF(Cockpit!$B$12>50,Cockpit!$B$14*Parameters!U8*Cockpit!$B$12,0)*Parameters!U13+(Cockpit!Q45*Cockpit!Q47*((SUMPRODUCT(Cockpit!$B$12:$C$12,Cockpit!$B$17:$C$17)-SUMPRODUCT(Cockpit!$B$12:$C$12,Cockpit!$B$15:$C$15))/SUMPRODUCT(Cockpit!$B$12:$C$12,Cockpit!$B$15:$C$15)))*Parameters!S8+(Cockpit!Q45*Cockpit!R47*((SUMPRODUCT(Cockpit!$B$12:$C$12,Cockpit!$B$17:$C$17)-SUMPRODUCT(Cockpit!$B$12:$C$12,Cockpit!$B$15:$C$15))/SUMPRODUCT(Cockpit!$B$12:$C$12,Cockpit!$B$15:$C$15)))*Parameters!T8+(Cockpit!Q45*Cockpit!S47*((SUMPRODUCT(Cockpit!$B$12:$C$12,Cockpit!$B$17:$C$17)-SUMPRODUCT(Cockpit!$B$12:$C$12,Cockpit!$B$15:$C$15))/SUMPRODUCT(Cockpit!$B$12:$C$12,Cockpit!$B$15:$C$15)))*Parameters!U8 ->  | W12: =IF(Cockpit!$B$12>50,Cockpit!$B$14*Parameters!V8*Cockpit!$B$12,0)*Parameters!V13+(Cockpit!R45*Cockpit!R47*((SUMPRODUCT(Cockpit!$B$12:$C$12,Cockpit!$B$17:$C$17)-SUMPRODUCT(Cockpit!$B$12:$C$12,Cockpit!$B$15:$C$15))/SUMPRODUCT(Cockpit!$B$12:$C$12,Cockpit!$B$15:$C$15)))*Parameters!T8+(Cockpit!R45*Cockpit!S47*((SUMPRODUCT(Cockpit!$B$12:$C$12,Cockpit!$B$17:$C$17)-SUMPRODUCT(Cockpit!$B$12:$C$12,Cockpit!$B$15:$C$15))/SUMPRODUCT(Cockpit!$B$12:$C$12,Cockpit!$B$15:$C$15)))*Parameters!U8+(Cockpit!R45*Cockpit!T47*((SUMPRODUCT(Cockpit!$B$12:$C$12,Cockpit!$B$17:$C$17)-SUMPRODUCT(Cockpit!$B$12:$C$12,Cockpit!$B$15:$C$15))/SUMPRODUCT(Cockpit!$B$12:$C$12,Cockpit!$B$15:$C$15)))*Parameters!V8 ->  | X12: =IF(Cockpit!$B$12>50,Cockpit!$B$14*Parameters!W8*Cockpit!$B$12,0)*Parameters!W13+(Cockpit!S45*Cockpit!S47*((SUMPRODUCT(Cockpit!$B$12:$C$12,Cockpit!$B$17:$C$17)-SUMPRODUCT(Cockpit!$B$12:$C$12,Cockpit!$B$15:$C$15))/SUMPRODUCT(Cockpit!$B$12:$C$12,Cockpit!$B$15:$C$15)))*Parameters!U8+(Cockpit!S45*Cockpit!T47*((SUMPRODUCT(Cockpit!$B$12:$C$12,Cockpit!$B$17:$C$17)-SUMPRODUCT(Cockpit!$B$12:$C$12,Cockpit!$B$15:$C$15))/SUMPRODUCT(Cockpit!$B$12:$C$12,Cockpit!$B$15:$C$15)))*Parameters!V8+(Cockpit!S45*Cockpit!U47*((SUMPRODUCT(Cockpit!$B$12:$C$12,Cockpit!$B$17:$C$17)-SUMPRODUCT(Cockpit!$B$12:$C$12,Cockpit!$B$15:$C$15))/SUMPRODUCT(Cockpit!$B$12:$C$12,Cockpit!$B$15:$C$15)))*Parameters!W8 ->  | Y12: =IF(Cockpit!$B$12>50,Cockpit!$B$14*Parameters!X8*Cockpit!$B$12,0)*Parameters!X13+(Cockpit!T45*Cockpit!T47*((SUMPRODUCT(Cockpit!$B$12:$C$12,Cockpit!$B$17:$C$17)-SUMPRODUCT(Cockpit!$B$12:$C$12,Cockpit!$B$15:$C$15))/SUMPRODUCT(Cockpit!$B$12:$C$12,Cockpit!$B$15:$C$15)))*Parameters!V8+(Cockpit!T45*Cockpit!U47*((SUMPRODUCT(Cockpit!$B$12:$C$12,Cockpit!$B$17:$C$17)-SUMPRODUCT(Cockpit!$B$12:$C$12,Cockpit!$B$15:$C$15))/SUMPRODUCT(Cockpit!$B$12:$C$12,Cockpit!$B$15:$C$15)))*Parameters!W8+(Cockpit!T45*Cockpit!V47*((SUMPRODUCT(Cockpit!$B$12:$C$12,Cockpit!$B$17:$C$17)-SUMPRODUCT(Cockpit!$B$12:$C$12,Cockpit!$B$15:$C$15))/SUMPRODUCT(Cockpit!$B$12:$C$12,Cockpit!$B$15:$C$15)))*Parameters!X8 ->  | Z12: =IF(Cockpit!$B$12>50,Cockpit!$B$14*Parameters!Y8*Cockpit!$B$12,0)*Parameters!Y13+(Cockpit!U45*Cockpit!U47*((SUMPRODUCT(Cockpit!$B$12:$C$12,Cockpit!$B$17:$C$17)-SUMPRODUCT(Cockpit!$B$12:$C$12,Cockpit!$B$15:$C$15))/SUMPRODUCT(Cockpit!$B$12:$C$12,Cockpit!$B$15:$C$15)))*Parameters!W8+(Cockpit!U45*Cockpit!V47*((SUMPRODUCT(Cockpit!$B$12:$C$12,Cockpit!$B$17:$C$17)-SUMPRODUCT(Cockpit!$B$12:$C$12,Cockpit!$B$15:$C$15))/SUMPRODUCT(Cockpit!$B$12:$C$12,Cockpit!$B$15:$C$15)))*Parameters!X8+(Cockpit!U45*Cockpit!W47*((SUMPRODUCT(Cockpit!$B$12:$C$12,Cockpit!$B$17:$C$17)-SUMPRODUCT(Cockpit!$B$12:$C$12,Cockpit!$B$15:$C$15))/SUMPRODUCT(Cockpit!$B$12:$C$12,Cockpit!$B$15:$C$15)))*Parameters!Y8 ->  | AA12: =IF(Cockpit!$B$12>50,Cockpit!$B$14*Parameters!Z8*Cockpit!$B$12,0)*Parameters!Z13+(Cockpit!V45*Cockpit!V47*((SUMPRODUCT(Cockpit!$B$12:$C$12,Cockpit!$B$17:$C$17)-SUMPRODUCT(Cockpit!$B$12:$C$12,Cockpit!$B$15:$C$15))/SUMPRODUCT(Cockpit!$B$12:$C$12,Cockpit!$B$15:$C$15)))*Parameters!X8+(Cockpit!V45*Cockpit!W47*((SUMPRODUCT(Cockpit!$B$12:$C$12,Cockpit!$B$17:$C$17)-SUMPRODUCT(Cockpit!$B$12:$C$12,Cockpit!$B$15:$C$15))/SUMPRODUCT(Cockpit!$B$12:$C$12,Cockpit!$B$15:$C$15)))*Parameters!Y8+(Cockpit!V45*Cockpit!X47*((SUMPRODUCT(Cockpit!$B$12:$C$12,Cockpit!$B$17:$C$17)-SUMPRODUCT(Cockpit!$B$12:$C$12,Cockpit!$B$15:$C$15))/SUMPRODUCT(Cockpit!$B$12:$C$12,Cockpit!$B$15:$C$15)))*Parameters!Z8 ->  | AB12: =IF(Cockpit!$B$12>50,Cockpit!$B$14*Parameters!AA8*Cockpit!$B$12,0)*Parameters!AA13+(Cockpit!W45*Cockpit!W47*((SUMPRODUCT(Cockpit!$B$12:$C$12,Cockpit!$B$17:$C$17)-SUMPRODUCT(Cockpit!$B$12:$C$12,Cockpit!$B$15:$C$15))/SUMPRODUCT(Cockpit!$B$12:$C$12,Cockpit!$B$15:$C$15)))*Parameters!Y8+(Cockpit!W45*Cockpit!X47*((SUMPRODUCT(Cockpit!$B$12:$C$12,Cockpit!$B$17:$C$17)-SUMPRODUCT(Cockpit!$B$12:$C$12,Cockpit!$B$15:$C$15))/SUMPRODUCT(Cockpit!$B$12:$C$12,Cockpit!$B$15:$C$15)))*Parameters!Z8+(Cockpit!W45*Cockpit!Y47*((SUMPRODUCT(Cockpit!$B$12:$C$12,Cockpit!$B$17:$C$17)-SUMPRODUCT(Cockpit!$B$12:$C$12,Cockpit!$B$15:$C$15))/SUMPRODUCT(Cockpit!$B$12:$C$12,Cockpit!$B$15:$C$15)))*Parameters!AA8 ->  | AC12: =IF(Cockpit!$B$12>50,Cockpit!$B$14*Parameters!AB8*Cockpit!$B$12,0)*Parameters!AB13+(Cockpit!X45*Cockpit!X47*((SUMPRODUCT(Cockpit!$B$12:$C$12,Cockpit!$B$17:$C$17)-SUMPRODUCT(Cockpit!$B$12:$C$12,Cockpit!$B$15:$C$15))/SUMPRODUCT(Cockpit!$B$12:$C$12,Cockpit!$B$15:$C$15)))*Parameters!Z8+(Cockpit!X45*Cockpit!Y47*((SUMPRODUCT(Cockpit!$B$12:$C$12,Cockpit!$B$17:$C$17)-SUMPRODUCT(Cockpit!$B$12:$C$12,Cockpit!$B$15:$C$15))/SUMPRODUCT(Cockpit!$B$12:$C$12,Cockpit!$B$15:$C$15)))*Parameters!AA8+(Cockpit!X45*Cockpit!Z47*((SUMPRODUCT(Cockpit!$B$12:$C$12,Cockpit!$B$17:$C$17)-SUMPRODUCT(Cockpit!$B$12:$C$12,Cockpit!$B$15:$C$15))/SUMPRODUCT(Cockpit!$B$12:$C$12,Cockpit!$B$15:$C$15)))*Parameters!AB8 ->  | AD12: =IF(Cockpit!$B$12>50,Cockpit!$B$14*Parameters!AC8*Cockpit!$B$12,0)*Parameters!AC13+(Cockpit!Y45*Cockpit!Y47*((SUMPRODUCT(Cockpit!$B$12:$C$12,Cockpit!$B$17:$C$17)-SUMPRODUCT(Cockpit!$B$12:$C$12,Cockpit!$B$15:$C$15))/SUMPRODUCT(Cockpit!$B$12:$C$12,Cockpit!$B$15:$C$15)))*Parameters!AA8+(Cockpit!Y45*Cockpit!Z47*((SUMPRODUCT(Cockpit!$B$12:$C$12,Cockpit!$B$17:$C$17)-SUMPRODUCT(Cockpit!$B$12:$C$12,Cockpit!$B$15:$C$15))/SUMPRODUCT(Cockpit!$B$12:$C$12,Cockpit!$B$15:$C$15)))*Parameters!AB8+(Cockpit!Y45*Cockpit!AA47*((SUMPRODUCT(Cockpit!$B$12:$C$12,Cockpit!$B$17:$C$17)-SUMPRODUCT(Cockpit!$B$12:$C$12,Cockpit!$B$15:$C$15))/SUMPRODUCT(Cockpit!$B$12:$C$12,Cockpit!$B$15:$C$15)))*Parameters!AC8 ->  | AE12: =IF(Cockpit!$B$12>50,Cockpit!$B$14*Parameters!AD8*Cockpit!$B$12,0)*Parameters!AD13+(Cockpit!Z45*Cockpit!Z47*((SUMPRODUCT(Cockpit!$B$12:$C$12,Cockpit!$B$17:$C$17)-SUMPRODUCT(Cockpit!$B$12:$C$12,Cockpit!$B$15:$C$15))/SUMPRODUCT(Cockpit!$B$12:$C$12,Cockpit!$B$15:$C$15)))*Parameters!AB8+(Cockpit!Z45*Cockpit!AA47*((SUMPRODUCT(Cockpit!$B$12:$C$12,Cockpit!$B$17:$C$17)-SUMPRODUCT(Cockpit!$B$12:$C$12,Cockpit!$B$15:$C$15))/SUMPRODUCT(Cockpit!$B$12:$C$12,Cockpit!$B$15:$C$15)))*Parameters!AC8+(Cockpit!Z45*Cockpit!AB47*((SUMPRODUCT(Cockpit!$B$12:$C$12,Cockpit!$B$17:$C$17)-SUMPRODUCT(Cockpit!$B$12:$C$12,Cockpit!$B$15:$C$15))/SUMPRODUCT(Cockpit!$B$12:$C$12,Cockpit!$B$15:$C$15)))*Parameters!AD8 ->  | AF12: =IF(Cockpit!$B$12>50,Cockpit!$B$14*Parameters!AE8*Cockpit!$B$12,0)*Parameters!AE13+(Cockpit!AA45*Cockpit!AA47*((SUMPRODUCT(Cockpit!$B$12:$C$12,Cockpit!$B$17:$C$17)-SUMPRODUCT(Cockpit!$B$12:$C$12,Cockpit!$B$15:$C$15))/SUMPRODUCT(Cockpit!$B$12:$C$12,Cockpit!$B$15:$C$15)))*Parameters!AC8+(Cockpit!AA45*Cockpit!AB47*((SUMPRODUCT(Cockpit!$B$12:$C$12,Cockpit!$B$17:$C$17)-SUMPRODUCT(Cockpit!$B$12:$C$12,Cockpit!$B$15:$C$15))/SUMPRODUCT(Cockpit!$B$12:$C$12,Cockpit!$B$15:$C$15)))*Parameters!AD8+(Cockpit!AA45*Cockpit!AC47*((SUMPRODUCT(Cockpit!$B$12:$C$12,Cockpit!$B$17:$C$17)-SUMPRODUCT(Cockpit!$B$12:$C$12,Cockpit!$B$15:$C$15))/SUMPRODUCT(Cockpit!$B$12:$C$12,Cockpit!$B$15:$C$15)))*Parameters!AE8 ->  | AG12: =IF(Cockpit!$B$12>50,Cockpit!$B$14*Parameters!AF8*Cockpit!$B$12,0)*Parameters!AF13+(Cockpit!AB45*Cockpit!AB47*((SUMPRODUCT(Cockpit!$B$12:$C$12,Cockpit!$B$17:$C$17)-SUMPRODUCT(Cockpit!$B$12:$C$12,Cockpit!$B$15:$C$15))/SUMPRODUCT(Cockpit!$B$12:$C$12,Cockpit!$B$15:$C$15)))*Parameters!AD8+(Cockpit!AB45*Cockpit!AC47*((SUMPRODUCT(Cockpit!$B$12:$C$12,Cockpit!$B$17:$C$17)-SUMPRODUCT(Cockpit!$B$12:$C$12,Cockpit!$B$15:$C$15))/SUMPRODUCT(Cockpit!$B$12:$C$12,Cockpit!$B$15:$C$15)))*Parameters!AE8+(Cockpit!AB45*Cockpit!AD47*((SUMPRODUCT(Cockpit!$B$12:$C$12,Cockpit!$B$17:$C$17)-SUMPRODUCT(Cockpit!$B$12:$C$12,Cockpit!$B$15:$C$15))/SUMPRODUCT(Cockpit!$B$12:$C$12,Cockpit!$B$15:$C$15)))*Parameters!AF8 ->  | AH12: =IF(Cockpit!$B$12>50,Cockpit!$B$14*Parameters!AG8*Cockpit!$B$12,0)*Parameters!AG13+(Cockpit!AC45*Cockpit!AC47*((SUMPRODUCT(Cockpit!$B$12:$C$12,Cockpit!$B$17:$C$17)-SUMPRODUCT(Cockpit!$B$12:$C$12,Cockpit!$B$15:$C$15))/SUMPRODUCT(Cockpit!$B$12:$C$12,Cockpit!$B$15:$C$15)))*Parameters!AE8+(Cockpit!AC45*Cockpit!AD47*((SUMPRODUCT(Cockpit!$B$12:$C$12,Cockpit!$B$17:$C$17)-SUMPRODUCT(Cockpit!$B$12:$C$12,Cockpit!$B$15:$C$15))/SUMPRODUCT(Cockpit!$B$12:$C$12,Cockpit!$B$15:$C$15)))*Parameters!AF8+(Cockpit!AC45*Cockpit!AE47*((SUMPRODUCT(Cockpit!$B$12:$C$12,Cockpit!$B$17:$C$17)-SUMPRODUCT(Cockpit!$B$12:$C$12,Cockpit!$B$15:$C$15))/SUMPRODUCT(Cockpit!$B$12:$C$12,Cockpit!$B$15:$C$15)))*Parameters!AG8 -> 
A13: Belastingen en verzekeringen | E13: =((Cockpit!B12)*(Cockpit!B28+Cockpit!B29)+(Cockpit!C12)*(Cockpit!B28+Cockpit!B29))*(1+Parameters!D3) -> 0 | F13: =E13*(1+Parameters!E3) -> 0 | G13: =F13*(1+Parameters!F3) -> 0 | H13: =G13*(1+Parameters!G3) -> 0 | I13: =H13*(1+Parameters!H3) -> 0 | J13: =I13*(1+Parameters!I3) -> 0 | K13: =J13*(1+Parameters!J3) -> 0 | L13: =K13*(1+Parameters!K3) -> 0 | M13: =L13*(1+Parameters!L3) -> 0 | N13: =M13*(1+Parameters!M3) -> 0 | O13: =N13*(1+Parameters!N3) -> 0 | P13: =O13*(1+Parameters!O3) -> 0 | Q13: =P13*(1+Parameters!P3) -> 0 | R13: =Q13*(1+Parameters!Q3) -> 0 | S13: =R13*(1+Parameters!R3) -> 0 | T13: =S13*(1+Parameters!S3) -> 0 | U13: =T13*(1+Parameters!T3) -> 0 | V13: =U13*(1+Parameters!U3) -> 0 | W13: =V13*(1+Parameters!V3) -> 0 | X13: =W13*(1+Parameters!W3) -> 0 | Y13: =X13*(1+Parameters!X3) -> 0 | Z13: =Y13*(1+Parameters!Y3) -> 0 | AA13: =Z13*(1+Parameters!Z3) -> 0 | AB13: =AA13*(1+Parameters!AA3) -> 0 | AC13: =AB13*(1+Parameters!AB3) -> 0 | AD13: =AC13*(1+Parameters!AC3) -> 0 | AE13: =AD13*(1+Parameters!AD3) -> 0 | AF13: =AE13*(1+Parameters!AE3) -> 0 | AG13: =AF13*(1+Parameters!AF3) -> 0 | AH13: =AG13*(1+Parameters!AG3) -> 0
A14: Erfpachtcanon | E14: =((Cockpit!B12)*Cockpit!B30+(Cockpit!C12)*Cockpit!C30)*(1+Parameters!D3) -> 0 | F14: =E14*(1+Parameters!E3) -> 0 | G14: =F14*(1+Parameters!F3) -> 0 | H14: =G14*(1+Parameters!G3) -> 0 | I14: =H14*(1+Parameters!H3) -> 0 | J14: =I14*(1+Parameters!I3) -> 0 | K14: =J14*(1+Parameters!J3) -> 0 | L14: =K14*(1+Parameters!K3) -> 0 | M14: =L14*(1+Parameters!L3) -> 0 | N14: =M14*(1+Parameters!M3) -> 0 | O14: =N14*(1+Parameters!N3) -> 0 | P14: =O14*(1+Parameters!O3) -> 0 | Q14: =P14*(1+Parameters!P3) -> 0 | R14: =Q14*(1+Parameters!Q3) -> 0 | S14: =R14*(1+Parameters!R3) -> 0 | T14: =S14*(1+Parameters!S3) -> 0 | U14: =T14*(1+Parameters!T3) -> 0 | V14: =U14*(1+Parameters!U3) -> 0 | W14: =V14*(1+Parameters!V3) -> 0 | X14: =W14*(1+Parameters!W3) -> 0 | Y14: =X14*(1+Parameters!X3) -> 0 | Z14: =Y14*(1+Parameters!Y3) -> 0 | AA14: =Z14*(1+Parameters!Z3) -> 0 | AB14: =AA14*(1+Parameters!AA3) -> 0 | AC14: =AB14*(1+Parameters!AB3) -> 0 | AD14: =AC14*(1+Parameters!AC3) -> 0 | AE14: =AD14*(1+Parameters!AD3) -> 0 | AF14: =AE14*(1+Parameters!AE3) -> 0 | AG14: =AF14*(1+Parameters!AF3) -> 0 | AH14: =AG14*(1+Parameters!AG3) -> 0
A15: Rentelasten
A16: Rentelasten - Bancaire lening | E16: =IF(Cockpit!$B$56="Annuïteit",(Cockpit!$B$55-E25)*Cockpit!$B$57,(Cockpit!$B$55-E25)*Cockpit!$B$57) -> 0 | F16: =IF(Cockpit!$B$56="Annuïteit",(Cockpit!$B$55-F25)*Cockpit!$B$57,(Cockpit!$B$55-F25)*Cockpit!$B$57) -> 0 | G16: =IF(Cockpit!$B$56="Annuïteit",(Cockpit!$B$55-G25)*Cockpit!$B$57,(Cockpit!$B$55-G25)*Cockpit!$B$57) -> 0 | H16: =IF(Cockpit!$B$56="Annuïteit",(Cockpit!$B$55-H25)*Cockpit!$B$57,(Cockpit!$B$55-H25)*Cockpit!$B$57) -> 0 | I16: =IF(Cockpit!$B$56="Annuïteit",(Cockpit!$B$55-I25)*Cockpit!$B$57,(Cockpit!$B$55-I25)*Cockpit!$B$57) -> 0 | J16: =IF(Cockpit!$B$56="Annuïteit",(Cockpit!$B$55-J25)*Cockpit!$B$57,(Cockpit!$B$55-J25)*Cockpit!$B$57) -> 0 | K16: =IF(Cockpit!$B$56="Annuïteit",(Cockpit!$B$55-K25)*Cockpit!$B$57,(Cockpit!$B$55-K25)*Cockpit!$B$57) -> 0 | L16: =IF(Cockpit!$B$56="Annuïteit",(Cockpit!$B$55-L25)*Cockpit!$B$57,(Cockpit!$B$55-L25)*Cockpit!$B$57) -> 0 | M16: =IF(Cockpit!$B$56="Annuïteit",(Cockpit!$B$55-M25)*Cockpit!$B$57,(Cockpit!$B$55-M25)*Cockpit!$B$57) -> 0 | N16: =IF(Cockpit!$B$56="Annuïteit",(Cockpit!$B$55-N25)*Cockpit!$B$57,(Cockpit!$B$55-N25)*Cockpit!$B$57) -> 0 | O16: =IF(Cockpit!$B$56="Annuïteit",(Cockpit!$B$55-O25)*Cockpit!$B$58,(Cockpit!$B$55-O25)*Cockpit!$B$58) -> 0 | P16: =IF(Cockpit!$B$56="Annuïteit",(Cockpit!$B$55-P25)*Cockpit!$B$58,(Cockpit!$B$55-P25)*Cockpit!$B$58) -> 0 | Q16: =IF(Cockpit!$B$56="Annuïteit",(Cockpit!$B$55-Q25)*Cockpit!$B$58,(Cockpit!$B$55-Q25)*Cockpit!$B$58) -> 0 | R16: =IF(Cockpit!$B$56="Annuïteit",(Cockpit!$B$55-R25)*Cockpit!$B$58,(Cockpit!$B$55-R25)*Cockpit!$B$58) -> 0 | S16: =IF(Cockpit!$B$56="Annuïteit",(Cockpit!$B$55-S25)*Cockpit!$B$58,(Cockpit!$B$55-S25)*Cockpit!$B$58) -> 0 | T16: =IF(Cockpit!$B$56="Annuïteit",(Cockpit!$B$55-T25)*Cockpit!$B$58,(Cockpit!$B$55-T25)*Cockpit!$B$58) -> 0 | U16: =IF(Cockpit!$B$56="Annuïteit",(Cockpit!$B$55-U25)*Cockpit!$B$58,(Cockpit!$B$55-U25)*Cockpit!$B$58) -> 0 | V16: =IF(Cockpit!$B$56="Annuïteit",(Cockpit!$B$55-V25)*Cockpit!$B$58,(Cockpit!$B$55-V25)*Cockpit!$B$58) -> 0 | W16: =IF(Cockpit!$B$56="Annuïteit",(Cockpit!$B$55-W25)*Cockpit!$B$58,(Cockpit!$B$55-W25)*Cockpit!$B$58) -> 0 | X16: =IF(Cockpit!$B$56="Annuïteit",(Cockpit!$B$55-X25)*Cockpit!$B$58,(Cockpit!$B$55-X25)*Cockpit!$B$58) -> 0 | Y16: =IF(Cockpit!$B$56="Annuïteit",(Cockpit!$B$55-Y25)*Cockpit!$B$58,(Cockpit!$B$55-Y25)*Cockpit!$B$58) -> 0 | Z16: =IF(Cockpit!$B$56="Annuïteit",(Cockpit!$B$55-Z25)*Cockpit!$B$58,(Cockpit!$B$55-Z25)*Cockpit!$B$58) -> 0 | AA16: =IF(Cockpit!$B$56="Annuïteit",(Cockpit!$B$55-AA25)*Cockpit!$B$58,(Cockpit!$B$55-AA25)*Cockpit!$B$58) -> 0 | AB16: =IF(Cockpit!$B$56="Annuïteit",(Cockpit!$B$55-AB25)*Cockpit!$B$58,(Cockpit!$B$55-AB25)*Cockpit!$B$58) -> 0 | AC16: =IF(Cockpit!$B$56="Annuïteit",(Cockpit!$B$55-AC25)*Cockpit!$B$58,(Cockpit!$B$55-AC25)*Cockpit!$B$58) -> 0 | AD16: =IF(Cockpit!$B$56="Annuïteit",(Cockpit!$B$55-AD25)*Cockpit!$B$58,(Cockpit!$B$55-AD25)*Cockpit!$B$58) -> 0 | AE16: =IF(Cockpit!$B$56="Annuïteit",(Cockpit!$B$55-AE25)*Cockpit!$B$58,(Cockpit!$B$55-AE25)*Cockpit!$B$58) -> 0 | AF16: =IF(Cockpit!$B$56="Annuïteit",(Cockpit!$B$55-AF25)*Cockpit!$B$58,(Cockpit!$B$55-AF25)*Cockpit!$B$58) -> 0 | AG16: =IF(Cockpit!$B$56="Annuïteit",(Cockpit!$B$55-AG25)*Cockpit!$B$58,(Cockpit!$B$55-AG25)*Cockpit!$B$58) -> 0 | AH16: =IF(Cockpit!$B$56="Annuïteit",(Cockpit!$B$55-AH25)*Cockpit!$B$58,(Cockpit!$B$55-AH25)*Cockpit!$B$58) -> 0
A17: =CONCATENATE("Rentelasten - ",Cockpit!A68) -> Rentelasten - Eigen inleg deelnemers | E17: =Cockpit!B70 -> 0 | F17: =Cockpit!C70 -> 0 | G17: =Cockpit!D70 -> 0 | H17: =Cockpit!E70 -> 0 | I17: =Cockpit!F70 -> 0 | J17: =Cockpit!G70 -> 0 | K17: =Cockpit!H70 -> 0 | L17: =Cockpit!I70 -> 0 | M17: =Cockpit!J70 -> 0 | N17: =Cockpit!K70 -> 0 | O17: =Cockpit!L70 -> 0 | P17: =Cockpit!M70 -> 0 | Q17: =Cockpit!N70 -> 0 | R17: =Cockpit!O70 -> 0 | S17: =Cockpit!P70 -> 0 | T17: =Cockpit!Q70 -> 0 | U17: =Cockpit!R70 -> 0 | V17: =Cockpit!S70 -> 0 | W17: =Cockpit!T70 -> 0 | X17: =Cockpit!U70 -> 0 | Y17: =Cockpit!V70 -> 0 | Z17: =Cockpit!W70 -> 0 | AA17: =Cockpit!X70 -> 0 | AB17: =Cockpit!Y70 -> 0 | AC17: =Cockpit!Z70 -> 0 | AD17: =Cockpit!AA70 -> 0 | AE17: =Cockpit!AB70 -> 0 | AF17: =Cockpit!AC70 -> 0 | AG17: =Cockpit!AD70 -> 0 | AH17: =Cockpit!AE70 -> 0
A18: =CONCATENATE("Rentelasten - ",Cockpit!A72) -> Rentelasten - Ontvangen subsidies | E18: =Cockpit!B74 -> 0 | F18: =Cockpit!C74 -> 0 | G18: =Cockpit!D74 -> 0 | H18: =Cockpit!E74 -> 0 | I18: =Cockpit!F74 -> 0 | J18: =Cockpit!G74 -> 0 | K18: =Cockpit!H74 -> 0 | L18: =Cockpit!I74 -> 0 | M18: =Cockpit!J74 -> 0 | N18: =Cockpit!K74 -> 0 | O18: =Cockpit!L74 -> 0 | P18: =Cockpit!M74 -> 0 | Q18: =Cockpit!N74 -> 0 | R18: =Cockpit!O74 -> 0 | S18: =Cockpit!P74 -> 0 | T18: =Cockpit!Q74 -> 0 | U18: =Cockpit!R74 -> 0 | V18: =Cockpit!S74 -> 0 | W18: =Cockpit!T74 -> 0 | X18: =Cockpit!U74 -> 0 | Y18: =Cockpit!V74 -> 0 | Z18: =Cockpit!W74 -> 0 | AA18: =Cockpit!X74 -> 0 | AB18: =Cockpit!Y74 -> 0 | AC18: =Cockpit!Z74 -> 0 | AD18: =Cockpit!AA74 -> 0 | AE18: =Cockpit!AB74 -> 0 | AF18: =Cockpit!AC74 -> 0 | AG18: =Cockpit!AD74 -> 0 | AH18: =Cockpit!AE74 -> 0
A19: =CONCATENATE("Rentelasten - ",Cockpit!A76) -> Rentelasten - Crowdfunding | E19: =Cockpit!B78 -> 0 | F19: =Cockpit!C78 -> 0 | G19: =Cockpit!D78 -> 0 | H19: =Cockpit!E78 -> 0 | I19: =Cockpit!F78 -> 0 | J19: =Cockpit!G78 -> 0 | K19: =Cockpit!H78 -> 0 | L19: =Cockpit!I78 -> 0 | M19: =Cockpit!J78 -> 0 | N19: =Cockpit!K78 -> 0 | O19: =Cockpit!L78 -> 0 | P19: =Cockpit!M78 -> 0 | Q19: =Cockpit!N78 -> 0 | R19: =Cockpit!O78 -> 0 | S19: =Cockpit!P78 -> 0 | T19: =Cockpit!Q78 -> 0 | U19: =Cockpit!R78 -> 0 | V19: =Cockpit!S78 -> 0 | W19: =Cockpit!T78 -> 0 | X19: =Cockpit!U78 -> 0 | Y19: =Cockpit!V78 -> 0 | Z19: =Cockpit!W78 -> 0 | AA19: =Cockpit!X78 -> 0 | AB19: =Cockpit!Y78 -> 0 | AC19: =Cockpit!Z78 -> 0 | AD19: =Cockpit!AA78 -> 0 | AE19: =Cockpit!AB78 -> 0 | AF19: =Cockpit!AC78 -> 0 | AG19: =Cockpit!AD78 -> 0 | AH19: =Cockpit!AE78 -> 0
A20: =CONCATENATE("Rentelasten - ",Cockpit!A80) -> Rentelasten - Overig | E20: =Cockpit!B82 -> 0 | F20: =Cockpit!C82 -> 0 | G20: =Cockpit!D82 -> 0 | H20: =Cockpit!E82 -> 0 | I20: =Cockpit!F82 -> 0 | J20: =Cockpit!G82 -> 0 | K20: =Cockpit!H82 -> 0 | L20: =Cockpit!I82 -> 0 | M20: =Cockpit!J82 -> 0 | N20: =Cockpit!K82 -> 0 | O20: =Cockpit!L82 -> 0 | P20: =Cockpit!M82 -> 0 | Q20: =Cockpit!N82 -> 0 | R20: =Cockpit!O82 -> 0 | S20: =Cockpit!P82 -> 0 | T20: =Cockpit!Q82 -> 0 | U20: =Cockpit!R82 -> 0 | V20: =Cockpit!S82 -> 0 | W20: =Cockpit!T82 -> 0 | X20: =Cockpit!U82 -> 0 | Y20: =Cockpit!V82 -> 0 | Z20: =Cockpit!W82 -> 0 | AA20: =Cockpit!X82 -> 0 | AB20: =Cockpit!Y82 -> 0 | AC20: =Cockpit!Z82 -> 0 | AD20: =Cockpit!AA82 -> 0 | AE20: =Cockpit!AB82 -> 0 | AF20: =Cockpit!AC82 -> 0 | AG20: =Cockpit!AD82 -> 0 | AH20: =Cockpit!AE82 -> 0
A21: Aflossingen
A22: Aflossing - Bancaire lening | E22: =E23+E24 -> 0 | F22: 0 | G22: 0 | H22: 0 | I22: 0 | J22: 0 | K22: 0 | L22: 0 | M22: 0 | N22: 0 | O22: 0 | P22: 0 | Q22: 0 | R22: 0 | S22: 0 | T22: 0 | U22: 0 | V22: 0 | W22: 0 | X22: 0 | Y22: 0 | Z22: 0 | AA22: 0 | AB22: 0 | AC22: 0 | AD22: 0 | AE22: 0 | AF22: 0 | AG22: 0 | AH22: 0
A23: Annuïtair | E23: =IFERROR(-IF(Cockpit!$B$56="Annuïtair",Cockpit!$B$57/(1-(1+Cockpit!$B$57)^(Cockpit!$B$59-(E2-$E$2)))*(Cockpit!$B$55+E25),0),0) -> 0 | F23: =IFERROR(-IF(Cockpit!$B$56="Annuïtair",Cockpit!$B$57/(1-(1+Cockpit!$B$57)^(Cockpit!$B$59-(F2-$E$2)))*(Cockpit!$B$55-F25),0),0) -> 0 | G23: =IFERROR(-IF(Cockpit!$B$56="Annuïtair",Cockpit!$B$57/(1-(1+Cockpit!$B$57)^(Cockpit!$B$59-(G2-$E$2)))*(Cockpit!$B$55-G25),0),0) -> 0 | H23: =IFERROR(-IF(Cockpit!$B$56="Annuïtair",Cockpit!$B$57/(1-(1+Cockpit!$B$57)^(Cockpit!$B$59-(H2-$E$2)))*(Cockpit!$B$55-H25),0),0) -> 0 | I23: =IFERROR(-IF(Cockpit!$B$56="Annuïtair",Cockpit!$B$57/(1-(1+Cockpit!$B$57)^(Cockpit!$B$59-(I2-$E$2)))*(Cockpit!$B$55-I25),0),0) -> 0 | J23: =IFERROR(-IF(Cockpit!$B$56="Annuïtair",Cockpit!$B$57/(1-(1+Cockpit!$B$57)^(Cockpit!$B$59-(J2-$E$2)))*(Cockpit!$B$55-J25),0),0) -> 0 | K23: =IFERROR(-IF(Cockpit!$B$56="Annuïtair",Cockpit!$B$57/(1-(1+Cockpit!$B$57)^(Cockpit!$B$59-(K2-$E$2)))*(Cockpit!$B$55-K25),0),0) -> 0 | L23: =IFERROR(-IF(Cockpit!$B$56="Annuïtair",Cockpit!$B$57/(1-(1+Cockpit!$B$57)^(Cockpit!$B$59-(L2-$E$2)))*(Cockpit!$B$55-L25),0),0) -> 0 | M23: =IFERROR(-IF(Cockpit!$B$56="Annuïtair",Cockpit!$B$57/(1-(1+Cockpit!$B$57)^(Cockpit!$B$59-(M2-$E$2)))*(Cockpit!$B$55-M25),0),0) -> 0 | N23: =IFERROR(-IF(Cockpit!$B$56="Annuïtair",Cockpit!$B$57/(1-(1+Cockpit!$B$57)^(Cockpit!$B$59-(N2-$E$2)))*(Cockpit!$B$55-N25),0),0) -> 0 | O23: =IFERROR(-IF(Cockpit!$B$56="Annuïtair",Cockpit!$B$58/(1-(1+Cockpit!$B$58)^(Cockpit!$B$59-(O2-$E$2)))*(Cockpit!$B$55-O25),0),0) -> 0 | P23: =IFERROR(-IF(Cockpit!$B$56="Annuïtair",Cockpit!$B$58/(1-(1+Cockpit!$B$58)^(Cockpit!$B$59-(P2-$E$2)))*(Cockpit!$B$55-P25),0),0) -> 0 | Q23: =IFERROR(-IF(Cockpit!$B$56="Annuïtair",Cockpit!$B$58/(1-(1+Cockpit!$B$58)^(Cockpit!$B$59-(Q2-$E$2)))*(Cockpit!$B$55-Q25),0),0) -> 0 | R23: =IFERROR(-IF(Cockpit!$B$56="Annuïtair",Cockpit!$B$58/(1-(1+Cockpit!$B$58)^(Cockpit!$B$59-(R2-$E$2)))*(Cockpit!$B$55-R25),0),0) -> 0 | S23: =IFERROR(-IF(Cockpit!$B$56="Annuïtair",Cockpit!$B$58/(1-(1+Cockpit!$B$58)^(Cockpit!$B$59-(S2-$E$2)))*(Cockpit!$B$55-S25),0),0) -> 0 | T23: =IFERROR(-IF(Cockpit!$B$56="Annuïtair",Cockpit!$B$58/(1-(1+Cockpit!$B$58)^(Cockpit!$B$59-(T2-$E$2)))*(Cockpit!$B$55-T25),0),0) -> 0 | U23: =IFERROR(-IF(Cockpit!$B$56="Annuïtair",Cockpit!$B$58/(1-(1+Cockpit!$B$58)^(Cockpit!$B$59-(U2-$E$2)))*(Cockpit!$B$55-U25),0),0) -> 0 | V23: =IFERROR(-IF(Cockpit!$B$56="Annuïtair",Cockpit!$B$58/(1-(1+Cockpit!$B$58)^(Cockpit!$B$59-(V2-$E$2)))*(Cockpit!$B$55-V25),0),0) -> 0 | W23: =IFERROR(-IF(Cockpit!$B$56="Annuïtair",Cockpit!$B$58/(1-(1+Cockpit!$B$58)^(Cockpit!$B$59-(W2-$E$2)))*(Cockpit!$B$55-W25),0),0) -> 0 | X23: =IFERROR(-IF(Cockpit!$B$56="Annuïtair",Cockpit!$B$58/(1-(1+Cockpit!$B$58)^(Cockpit!$B$59-(X2-$E$2)))*(Cockpit!$B$55-X25),0),0) -> 0 | Y23: =IFERROR(-IF(Cockpit!$B$56="Annuïtair",Cockpit!$B$58/(1-(1+Cockpit!$B$58)^(Cockpit!$B$59-(Y2-$E$2)))*(Cockpit!$B$55-Y25),0),0) -> 0 | Z23: =IFERROR(-IF(Cockpit!$B$56="Annuïtair",Cockpit!$B$58/(1-(1+Cockpit!$B$58)^(Cockpit!$B$59-(Z2-$E$2)))*(Cockpit!$B$55-Z25),0),0) -> 0 | AA23: =IFERROR(-IF(Cockpit!$B$56="Annuïtair",Cockpit!$B$58/(1-(1+Cockpit!$B$58)^(Cockpit!$B$59-(AA2-$E$2)))*(Cockpit!$B$55-AA25),0),0) -> 0 | AB23: =IFERROR(-IF(Cockpit!$B$56="Annuïtair",Cockpit!$B$58/(1-(1+Cockpit!$B$58)^(Cockpit!$B$59-(AB2-$E$2)))*(Cockpit!$B$55-AB25),0),0) -> 0 | AC23: =IFERROR(-IF(Cockpit!$B$56="Annuïtair",Cockpit!$B$58/(1-(1+Cockpit!$B$58)^(Cockpit!$B$59-(AC2-$E$2)))*(Cockpit!$B$55-AC25),0),0) -> 0 | AD23: =IFERROR(-IF(Cockpit!$B$56="Annuïtair",Cockpit!$B$58/(1-(1+Cockpit!$B$58)^(Cockpit!$B$59-(AD2-$E$2)))*(Cockpit!$B$55-AD25),0),0) -> 0 | AE23: =IFERROR(-IF(Cockpit!$B$56="Annuïtair",Cockpit!$B$58/(1-(1+Cockpit!$B$58)^(Cockpit!$B$59-(AE2-$E$2)))*(Cockpit!$B$55-AE25),0),0) -> 0 | AF23: =IFERROR(-IF(Cockpit!$B$56="Annuïtair",Cockpit!$B$58/(1-(1+Cockpit!$B$58)^(Cockpit!$B$59-(AF2-$E$2)))*(Cockpit!$B$55-AF25),0),0) -> 0 | AG23: =IFERROR(-IF(Cockpit!$B$56="Annuïtair",Cockpit!$B$58/(1-(1+Cockpit!$B$58)^(Cockpit!$B$59-(AG2-$E$2)))*(Cockpit!$B$55-AG25),0),0) -> 0 | AH23: =IFERROR(-IF(Cockpit!$B$56="Annuïtair",Cockpit!$B$58/(1-(1+Cockpit!$B$58)^(Cockpit!$B$59-(AH2-$E$2)))*(Cockpit!$B$55-AH25),0),0) -> 0
A24: Lineair | E24: =IFERROR(IF(E25>=Cockpit!$B$55,0,IF(Cockpit!$B$56="Lineair",Cockpit!$B$55/Cockpit!$B$59,0)),0) -> 0 | F24: =IFERROR(IF(F25>=Cockpit!$B$55,0,IF(Cockpit!$B$56="Lineair",Cockpit!$B$55/Cockpit!$B$59,0)),0) -> 0 | G24: =IFERROR(IF(G25>=Cockpit!$B$55,0,IF(Cockpit!$B$56="Lineair",Cockpit!$B$55/Cockpit!$B$59,0)),0) -> 0 | H24: =IFERROR(IF(H25>=Cockpit!$B$55,0,IF(Cockpit!$B$56="Lineair",Cockpit!$B$55/Cockpit!$B$59,0)),0) -> 0 | I24: =IFERROR(IF(I25>=Cockpit!$B$55,0,IF(Cockpit!$B$56="Lineair",Cockpit!$B$55/Cockpit!$B$59,0)),0) -> 0 | J24: =IFERROR(IF(J25>=Cockpit!$B$55,0,IF(Cockpit!$B$56="Lineair",Cockpit!$B$55/Cockpit!$B$59,0)),0) -> 0 | K24: =IFERROR(IF(K25>=Cockpit!$B$55,0,IF(Cockpit!$B$56="Lineair",Cockpit!$B$55/Cockpit!$B$59,0)),0) -> 0 | L24: =IFERROR(IF(L25>=Cockpit!$B$55,0,IF(Cockpit!$B$56="Lineair",Cockpit!$B$55/Cockpit!$B$59,0)),0) -> 0 | M24: =IFERROR(IF(M25>=Cockpit!$B$55,0,IF(Cockpit!$B$56="Lineair",Cockpit!$B$55/Cockpit!$B$59,0)),0) -> 0 | N24: =IFERROR(IF(N25>=Cockpit!$B$55,0,IF(Cockpit!$B$56="Lineair",Cockpit!$B$55/Cockpit!$B$59,0)),0) -> 0 | O24: =IFERROR(IF(O25>=Cockpit!$B$55,0,IF(Cockpit!$B$56="Lineair",Cockpit!$B$55/Cockpit!$B$59,0)),0) -> 0 | P24: =IFERROR(IF(P25>=Cockpit!$B$55,0,IF(Cockpit!$B$56="Lineair",Cockpit!$B$55/Cockpit!$B$59,0)),0) -> 0 | Q24: =IFERROR(IF(Q25>=Cockpit!$B$55,0,IF(Cockpit!$B$56="Lineair",Cockpit!$B$55/Cockpit!$B$59,0)),0) -> 0 | R24: =IFERROR(IF(R25>=Cockpit!$B$55,0,IF(Cockpit!$B$56="Lineair",Cockpit!$B$55/Cockpit!$B$59,0)),0) -> 0 | S24: =IFERROR(IF(S25>=Cockpit!$B$55,0,IF(Cockpit!$B$56="Lineair",Cockpit!$B$55/Cockpit!$B$59,0)),0) -> 0 | T24: =IFERROR(IF(T25>=Cockpit!$B$55,0,IF(Cockpit!$B$56="Lineair",Cockpit!$B$55/Cockpit!$B$59,0)),0) -> 0 | U24: =IFERROR(IF(U25>=Cockpit!$B$55,0,IF(Cockpit!$B$56="Lineair",Cockpit!$B$55/Cockpit!$B$59,0)),0) -> 0 | V24: =IFERROR(IF(V25>=Cockpit!$B$55,0,IF(Cockpit!$B$56="Lineair",Cockpit!$B$55/Cockpit!$B$59,0)),0) -> 0 | W24: =IFERROR(IF(W25>=Cockpit!$B$55,0,IF(Cockpit!$B$56="Lineair",Cockpit!$B$55/Cockpit!$B$59,0)),0) -> 0 | X24: =IFERROR(IF(X25>=Cockpit!$B$55,0,IF(Cockpit!$B$56="Lineair",Cockpit!$B$55/Cockpit!$B$59,0)),0) -> 0 | Y24: =IFERROR(IF(Y25>=Cockpit!$B$55,0,IF(Cockpit!$B$56="Lineair",Cockpit!$B$55/Cockpit!$B$59,0)),0) -> 0 | Z24: =IFERROR(IF(Z25>=Cockpit!$B$55,0,IF(Cockpit!$B$56="Lineair",Cockpit!$B$55/Cockpit!$B$59,0)),0) -> 0 | AA24: =IFERROR(IF(AA25>=Cockpit!$B$55,0,IF(Cockpit!$B$56="Lineair",Cockpit!$B$55/Cockpit!$B$59,0)),0) -> 0 | AB24: =IFERROR(IF(AB25>=Cockpit!$B$55,0,IF(Cockpit!$B$56="Lineair",Cockpit!$B$55/Cockpit!$B$59,0)),0) -> 0 | AC24: =IFERROR(IF(AC25>=Cockpit!$B$55,0,IF(Cockpit!$B$56="Lineair",Cockpit!$B$55/Cockpit!$B$59,0)),0) -> 0 | AD24: =IFERROR(IF(AD25>=Cockpit!$B$55,0,IF(Cockpit!$B$56="Lineair",Cockpit!$B$55/Cockpit!$B$59,0)),0) -> 0 | AE24: =IFERROR(IF(AE25>=Cockpit!$B$55,0,IF(Cockpit!$B$56="Lineair",Cockpit!$B$55/Cockpit!$B$59,0)),0) -> 0 | AF24: =IFERROR(IF(AF25>=Cockpit!$B$55,0,IF(Cockpit!$B$56="Lineair",Cockpit!$B$55/Cockpit!$B$59,0)),0) -> 0 | AG24: =IFERROR(IF(AG25>=Cockpit!$B$55,0,IF(Cockpit!$B$56="Lineair",Cockpit!$B$55/Cockpit!$B$59,0)),0) -> 0 | AH24: =IFERROR(IF(AH25>=Cockpit!$B$55,0,IF(Cockpit!$B$56="Lineair",Cockpit!$B$55/Cockpit!$B$59,0)),0) -> 0
A25: Cumulatieve aflossing begin jaar | E25: =D25+D23+D24 -> 0 | F25: =E25+E23+E24 -> 0 | G25: =F25+F23+F24 -> 0 | H25: =G25+G23+G24 -> 0 | I25: =H25+H23+H24 -> 0 | J25: =I25+I23+I24 -> 0 | K25: =J25+J23+J24 -> 0 | L25: =K25+K23+K24 -> 0 | M25: =L25+L23+L24 -> 0 | N25: =M25+M23+M24 -> 0 | O25: =N25+N23+N24 -> 0 | P25: =O25+O23+O24 -> 0 | Q25: =P25+P23+P24 -> 0 | R25: =Q25+Q23+Q24 -> 0 | S25: =R25+R23+R24 -> 0 | T25: =S25+S23+S24 -> 0 | U25: =T25+T23+T24 -> 0 | V25: =U25+U23+U24 -> 0 | W25: =V25+V23+V24 -> 0 | X25: =W25+W23+W24 -> 0 | Y25: =X25+X23+X24 -> 0 | Z25: =Y25+Y23+Y24 -> 0 | AA25: =Z25+Z23+Z24 -> 0 | AB25: =AA25+AA23+AA24 -> 0 | AC25: =AB25+AB23+AB24 -> 0 | AD25: =AC25+AC23+AC24 -> 0 | AE25: =AD25+AD23+AD24 -> 0 | AF25: =AE25+AE23+AE24 -> 0 | AG25: =AF25+AF23+AF24 -> 0 | AH25: =AG25+AG23+AG24 -> 0
A26: =CONCATENATE("Aflossing - ",Cockpit!A68) -> Aflossing - Eigen inleg deelnemers | E26: =Cockpit!B69 -> 0 | F26: =Cockpit!C69 -> 0 | G26: =Cockpit!D69 -> 0 | H26: =Cockpit!E69 -> 0 | I26: =Cockpit!F69 -> 0 | J26: =Cockpit!G69 -> 0 | K26: =Cockpit!H69 -> 0 | L26: =Cockpit!I69 -> 0 | M26: =Cockpit!J69 -> 0 | N26: =Cockpit!K69 -> 0 | O26: =Cockpit!L69 -> 0 | P26: =Cockpit!M69 -> 0 | Q26: =Cockpit!N69 -> 0 | R26: =Cockpit!O69 -> 0 | S26: =Cockpit!P69 -> 0 | T26: =Cockpit!Q69 -> 0 | U26: =Cockpit!R69 -> 0 | V26: =Cockpit!S69 -> 0 | W26: =Cockpit!T69 -> 0 | X26: =Cockpit!U69 -> 0 | Y26: =Cockpit!V69 -> 0 | Z26: =Cockpit!W69 -> 0 | AA26: =Cockpit!X69 -> 0 | AB26: =Cockpit!Y69 -> 0 | AC26: =Cockpit!Z69 -> 0 | AD26: =Cockpit!AA69 -> 0 | AE26: =Cockpit!AB69 -> 0 | AF26: =Cockpit!AC69 -> 0 | AG26: =Cockpit!AD69 -> 0 | AH26: =Cockpit!AE69 -> 0
A27: =CONCATENATE("Aflossing - ",Cockpit!A72) -> Aflossing - Ontvangen subsidies | E27: =Cockpit!B73 -> 0 | F27: =Cockpit!C73 -> 0 | G27: =Cockpit!D73 -> 0 | H27: =Cockpit!E73 -> 0 | I27: =Cockpit!F73 -> 0 | J27: =Cockpit!G73 -> 0 | K27: =Cockpit!H73 -> 0 | L27: =Cockpit!I73 -> 0 | M27: =Cockpit!J73 -> 0 | N27: =Cockpit!K73 -> 0 | O27: =Cockpit!L73 -> 0 | P27: =Cockpit!M73 -> 0 | Q27: =Cockpit!N73 -> 0 | R27: =Cockpit!O73 -> 0 | S27: =Cockpit!P73 -> 0 | T27: =Cockpit!Q73 -> 0 | U27: =Cockpit!R73 -> 0 | V27: =Cockpit!S73 -> 0 | W27: =Cockpit!T73 -> 0 | X27: =Cockpit!U73 -> 0 | Y27: =Cockpit!V73 -> 0 | Z27: =Cockpit!W73 -> 0 | AA27: =Cockpit!X73 -> 0 | AB27: =Cockpit!Y73 -> 0 | AC27: =Cockpit!Z73 -> 0 | AD27: =Cockpit!AA73 -> 0 | AE27: =Cockpit!AB73 -> 0 | AF27: =Cockpit!AC73 -> 0 | AG27: =Cockpit!AD73 -> 0 | AH27: =Cockpit!AE73 -> 0
A28: =CONCATENATE("Aflossing - ",Cockpit!A76) -> Aflossing - Crowdfunding | E28: =Cockpit!B77 -> 0 | F28: =Cockpit!C77 -> 0 | G28: =Cockpit!D77 -> 0 | H28: =Cockpit!E77 -> 0 | I28: =Cockpit!F77 -> 0 | J28: =Cockpit!G77 -> 0 | K28: =Cockpit!H77 -> 0 | L28: =Cockpit!I77 -> 0 | M28: =Cockpit!J77 -> 0 | N28: =Cockpit!K77 -> 0 | O28: =Cockpit!L77 -> 0 | P28: =Cockpit!M77 -> 0 | Q28: =Cockpit!N77 -> 0 | R28: =Cockpit!O77 -> 0 | S28: =Cockpit!P77 -> 0 | T28: =Cockpit!Q77 -> 0 | U28: =Cockpit!R77 -> 0 | V28: =Cockpit!S77 -> 0 | W28: =Cockpit!T77 -> 0 | X28: =Cockpit!U77 -> 0 | Y28: =Cockpit!V77 -> 0 | Z28: =Cockpit!W77 -> 0 | AA28: =Cockpit!X77 -> 0 | AB28: =Cockpit!Y77 -> 0 | AC28: =Cockpit!Z77 -> 0 | AD28: =Cockpit!AA77 -> 0 | AE28: =Cockpit!AB77 -> 0 | AF28: =Cockpit!AC77 -> 0 | AG28: =Cockpit!AD77 -> 0 | AH28: =Cockpit!AE77 -> 0
A29: =CONCATENATE("Aflossing - ",Cockpit!A80) -> Aflossing - Overig | E29: =Cockpit!B81 -> 0 | F29: =Cockpit!C81 -> 0 | G29: =Cockpit!D81 -> 0 | H29: =Cockpit!E81 -> 0 | I29: =Cockpit!F81 -> 0 | J29: =Cockpit!G81 -> 0 | K29: =Cockpit!H81 -> 0 | L29: =Cockpit!I81 -> 0 | M29: =Cockpit!J81 -> 0 | N29: =Cockpit!K81 -> 0 | O29: =Cockpit!L81 -> 0 | P29: =Cockpit!M81 -> 0 | Q29: =Cockpit!N81 -> 0 | R29: =Cockpit!O81 -> 0 | S29: =Cockpit!P81 -> 0 | T29: =Cockpit!Q81 -> 0 | U29: =Cockpit!R81 -> 0 | V29: =Cockpit!S81 -> 0 | W29: =Cockpit!T81 -> 0 | X29: =Cockpit!U81 -> 0 | Y29: =Cockpit!V81 -> 0 | Z29: =Cockpit!W81 -> 0 | AA29: =Cockpit!X81 -> 0 | AB29: =Cockpit!Y81 -> 0 | AC29: =Cockpit!Z81 -> 0 | AD29: =Cockpit!AA81 -> 0 | AE29: =Cockpit!AB81 -> 0 | AF29: =Cockpit!AC81 -> 0 | AG29: =Cockpit!AD81 -> 0 | AH29: =Cockpit!AE81 -> 0
A30: Totaal lasten | E30: =SUM(E10:E14,E16:E20,E22,E26:E29) ->  | F30: =SUM(F10:F14,F16:F20,F22,F26:F29) -> 
A32: Netto kasstroom | E32: =E7-E30 ->  | F32: =F7-F30 -> 
A34: Liquide middelen primo | E34: =Cockpit!B55+Cockpit!B68+Cockpit!B72+Cockpit!B76-Cockpit!B63 -> 0 | F34: =E35 ->  | G34: =F35 -> 
A35: Liquide middelen ultimo | E35: =E34+E32 ->  | F35: =F34+F32 -> 
A37: Schuldpositie ultimo | E37: =SUM(E38:E42) -> 0 | F37: =SUM(F38:F42) -> 0 | G37: 0 | H37: 0 | I37: 0 | J37: 0 | K37: 0 | L37: 0 | M37: 0 | N37: 0 | O37: 0 | P37: 0 | Q37: 0 | R37: 0 | S37: 0 | T37: 0 | U37: 0 | V37: 0 | W37: 0 | X37: 0 | Y37: 0 | Z37: 0 | AA37: 0 | AB37: 0 | AC37: 0 | AD37: 0 | AE37: 0 | AF37: 0 | AG37: 0 | AH37: 0
A38: Schuldpositie - Bancaire lening | E38: =MAX(Cockpit!B64-E22,0) -> 0 | F38: =MAX(E38-F22,0) -> 0 | G38: =MAX(F38-G22,0) -> 0 | H38: 0 | I38: 0 | J38: 0 | K38: 0 | L38: 0 | M38: 0 | N38: 0 | O38: 0 | P38: 0 | Q38: 0 | R38: 0 | S38: 0 | T38: 0 | U38: 0 | V38: 0 | W38: 0 | X38: 0 | Y38: 0 | Z38: 0 | AA38: 0 | AB38: 0 | AC38: 0 | AD38: 0 | AE38: 0 | AF38: 0 | AG38: 0 | AH38: 0
A39: =CONCATENATE("Schuldpositie - ",Cockpit!A68) -> Schuldpositie - Eigen inleg deelnemers | E39: =MAX(Cockpit!B68-E26,0) -> 0 | F39: =MAX(E39-F26,0) -> 0 | G39: =MAX(F39-G26,0) -> 0 | H39: 0 | I39: 0 | J39: 0 | K39: 0 | L39: 0 | M39: 0 | N39: 0 | O39: 0 | P39: 0 | Q39: 0 | R39: 0 | S39: 0 | T39: 0 | U39: 0 | V39: 0 | W39: 0 | X39: 0 | Y39: 0 | Z39: 0 | AA39: 0 | AB39: 0 | AC39: 0 | AD39: 0 | AE39: 0 | AF39: 0 | AG39: 0 | AH39: 0
A40: =CONCATENATE("Schuldpositie - ",Cockpit!A72) -> Schuldpositie - Ontvangen subsidies | E40: =MAX(Cockpit!B72-E27,0) -> 0 | F40: =MAX(E40-F27,0) -> 0 | G40: 0 | H40: 0 | I40: 0 | J40: 0 | K40: 0 | L40: 0 | M40: 0 | N40: 0 | O40: 0 | P40: 0 | Q40: 0 | R40: 0 | S40: 0 | T40: 0 | U40: 0 | V40: 0 | W40: 0 | X40: 0 | Y40: 0 | Z40: 0 | AA40: 0 | AB40: 0 | AC40: 0 | AD40: 0 | AE40: 0 | AF40: 0 | AG40: 0 | AH40: 0
A41: =CONCATENATE("Schuldpositie - ",Cockpit!A76) -> Schuldpositie - Crowdfunding | E41: =MAX(Cockpit!B76-E28,0) -> 0 | F41: 0 | G41: 0 | H41: 0 | I41: 0 | J41: 0 | K41: 0 | L41: 0 | M41: 0 | N41: 0 | O41: 0 | P41: 0 | Q41: 0 | R41: 0 | S41: 0 | T41: 0 | U41: 0 | V41: 0 | W41: 0 | X41: 0 | Y41: 0 | Z41: 0 | AA41: 0 | AB41: 0 | AC41: 0 | AD41: 0 | AE41: 0 | AF41: 0 | AG41: 0 | AH41: 0
A42: =CONCATENATE("Schuldpositie - ",Cockpit!A80) -> Schuldpositie - Overig | E42: =MAX(Cockpit!B80-E29,0) -> 0 | F42: 0 | G42: 0 | H42: 0 | I42: 0 | J42: 0 | K42: 0 | L42: 0 | M42: 0 | N42: 0 | O42: 0 | P42: 0 | Q42: 0 | R42: 0 | S42: 0 | T42: 0 | U42: 0 | V42: 0 | W42: 0 | X42: 0 | Y42: 0 | Z42: 0 | AA42: 0 | AB42: 0 | AC42: 0 | AD42: 0 | AE42: 0 | AF42: 0 | AG42: 0 | AH42: 0
A44: Marktwaarde woningen | E44: =Cockpit!B17*Cockpit!B12+Cockpit!C17*Cockpit!C12 -> 0 | F44: =E44*(1+Parameters!E7) -> 0 | G44: =F44*(1+Parameters!F7) -> 0 | H44: =G44*(1+Parameters!G7) -> 0 | I44: =H44*(1+Parameters!H7) -> 0 | J44: =I44*(1+Parameters!I7) -> 0 | K44: =J44*(1+Parameters!J7) -> 0 | L44: =K44*(1+Parameters!K7) -> 0 | M44: =L44*(1+Parameters!L7) -> 0 | N44: =M44*(1+Parameters!M7) -> 0 | O44: =N44*(1+Parameters!N7) -> 0 | P44: =O44*(1+Parameters!O7) -> 0 | Q44: =P44*(1+Parameters!P7) -> 0 | R44: =Q44*(1+Parameters!Q7) -> 0 | S44: =R44*(1+Parameters!R7) -> 0 | T44: =S44*(1+Parameters!S7) -> 0 | U44: =T44*(1+Parameters!T7) -> 0 | V44: =U44*(1+Parameters!U7) -> 0 | W44: =V44*(1+Parameters!V7) -> 0 | X44: =W44*(1+Parameters!W7) -> 0 | Y44: =X44*(1+Parameters!X7) -> 0 | Z44: =Y44*(1+Parameters!Y7) -> 0 | AA44: =Z44*(1+Parameters!Z7) -> 0 | AB44: =AA44*(1+Parameters!AA7) -> 0 | AC44: =AB44*(1+Parameters!AB7) -> 0 | AD44: =AC44*(1+Parameters!AC7) -> 0 | AE44: =AD44*(1+Parameters!AD7) -> 0 | AF44: =AE44*(1+Parameters!AE7) -> 0 | AG44: =AF44*(1+Parameters!AF7) -> 0 | AH44: =AG44*(1+Parameters!AG7) -> 0

Sheet Parameters
A1: Hulpblad - Parameters
A2: Reeksen (2019) | C2: 2019 | D2: 2020 | E2: 2021 | F2: 2022 | G2: 2023 | H2: 2024 | I2: 2025 | J2: 2026 | K2: 2027 | L2: 2028 | M2: 2029 | N2: 2030 | O2: 2031 | P2: 2032 | Q2: 2033 | R2: 2034 | S2: 2035 | T2: 2036 | U2: 2037 | V2: 2038 | W2: 2039 | X2: 2040 | Y2: 2041 | Z2: 2042 | AA2: 2043 | AB2: 2044 | AC2: 2045 | AD2: 2046 | AE2: 2047 | AF2: 2048 | AG2: 2049 | AH2: 2050
A3: Prijsinflatie | C3: 0.026 | D3: 0.011 | E3: 0.013 | F3: 0.01 | G3: 0.01 | H3: 0.015 | I3: 0.02 | J3: 0.02 | K3: 0.02 | L3: 0.02 | M3: 0.02 | N3: 0.02 | O3: 0.02 | P3: 0.02 | Q3: 0.02 | R3: 0.02 | S3: 0.02 | T3: 0.02 | U3: 0.02 | V3: 0.02 | W3: 0.02 | X3: 0.02 | Y3: 0.02 | Z3: 0.02 | AA3: 0.02 | AB3: 0.02 | AC3: 0.02 | AD3: 0.02 | AE3: 0.02 | AF3: 0.02 | AG3: 0.02 | AH3: 0.02
A4: Huurverhoging incl. inflatie | C4: =C3+Cockpit!$B$22 -> 0.026 | D4: =D3+Cockpit!$B$22 -> 0.011 | E4: =E3+Cockpit!$B$22 -> 0.013 | F4: =F3+Cockpit!$B$22 -> 0.01 | G4: =G3+Cockpit!$B$22 -> 0.01 | H4: =H3+Cockpit!$B$22 -> 0.015 | I4: =I3+Cockpit!$B$22 -> 0.02 | J4: =J3+Cockpit!$B$22 -> 0.02 | K4: =K3+Cockpit!$B$22 -> 0.02 | L4: =L3+Cockpit!$B$22 -> 0.02 | M4: =M3+Cockpit!$B$22 -> 0.02 | N4: =N3+Cockpit!$B$22 -> 0.02 | O4: =O3+Cockpit!$B$22 -> 0.02 | P4: =P3+Cockpit!$B$22 -> 0.02 | Q4: =Q3+Cockpit!$B$22 -> 0.02 | R4: =R3+Cockpit!$B$22 -> 0.02 | S4: =S3+Cockpit!$B$22 -> 0.02 | T4: =T3+Cockpit!$B$22 -> 0.02 | U4: =U3+Cockpit!$B$22 -> 0.02 | V4: =V3+Cockpit!$B$22 -> 0.02 | W4: =W3+Cockpit!$B$22 -> 0.02 | X4: =X3+Cockpit!$B$22 -> 0.02 | Y4: =Y3+Cockpit!$B$22 -> 0.02 | Z4: =Z3+Cockpit!$B$22 -> 0.02 | AA4: =AA3+Cockpit!$B$22 -> 0.02 | AB4: =AB3+Cockpit!$B$22 -> 0.02 | AC4: =AC3+Cockpit!$B$22 -> 0.02 | AD4: =AD3+Cockpit!$B$22 -> 0.02 | AE4: =AE3+Cockpit!$B$22 -> 0.02 | AF4: =AF3+Cockpit!$B$22 -> 0.02 | AG4: =AG3+Cockpit!$B$22 -> 0.02 | AH4: =AH3+Cockpit!$B$22 -> 0.02
A5: Loonstijging | C5: 0.025 | D5: 0.023 | E5: 0.014 | F5: 0.019 | G5: 0.019 | H5: 0.019 | I5: 0.025 | J5: 0.025 | K5: 0.025 | L5: 0.025 | M5: 0.025 | N5: 0.025 | O5: 0.025 | P5: 0.025 | Q5: 0.025 | R5: 0.025 | S5: 0.025 | T5: 0.025 | U5: 0.025 | V5: 0.025 | W5: 0.025 | X5: 0.025 | Y5: 0.025 | Z5: 0.025 | AA5: 0.025 | AB5: 0.025 | AC5: 0.025 | AD5: 0.025 | AE5: 0.025 | AF5: 0.025 | AG5: 0.025 | AH5: 0.025
A6: Onderhoudsindex | C6: 0.035 | D6: 0.03 | E6: 0.03 | F6: 0.025 | G6: 0.02 | H6: 0.02 | I6: 0.025 | J6: 0.025 | K6: 0.025 | L6: 0.025 | M6: 0.025 | N6: 0.025 | O6: 0.025 | P6: 0.025 | Q6: 0.025 | R6: 0.025 | S6: 0.025 | T6: 0.025 | U6: 0.025 | V6: 0.025 | W6: 0.025 | X6: 0.025 | Y6: 0.025 | Z6: 0.025 | AA6: 0.025 | AB6: 0.025 | AC6: 0.025 | AD6: 0.025 | AE6: 0.025 | AF6: 0.025 | AG6: 0.025 | AH6: 0.025
A7: Marktindex (o.b.v. DNB) | C7: 0.072 | D7: 0.046 | E7: 0.02 | F7: 0.02 | G7: 0.02 | H7: 0.02 | I7: 0.02 | J7: 0.02 | K7: 0.02 | L7: 0.02 | M7: 0.02 | N7: 0.02 | O7: 0.02 | P7: 0.02 | Q7: 0.02 | R7: 0.02 | S7: 0.02 | T7: 0.02 | U7: 0.02 | V7: 0.02 | W7: 0.02 | X7: 0.02 | Y7: 0.02 | Z7: 0.02 | AA7: 0.02 | AB7: 0.02 | AC7: 0.02 | AD7: 0.02 | AE7: 0.02 | AF7: 0.02 | AG7: 0.02 | AH7: 0.02
A8: Verhuurderheffing | C8: 0.00561 | D8: 0.00562 | E8: 0.00562 | F8: 0.00563 | G8: 0.00537 | H8: 0.00537 | I8: 0.00537 | J8: 0.00537 | K8: 0.00537 | L8: 0.00537 | M8: 0.00537 | N8: 0.00537 | O8: 0.00537 | P8: 0.00537 | Q8: 0.00537 | R8: 0.00537 | S8: 0.00537 | T8: 0.00537 | U8: 0.00537 | V8: 0.00537 | W8: 0.00537 | X8: 0.00537 | Y8: 0.00537 | Z8: 0.00537 | AA8: 0.00537 | AB8: 0.00537 | AC8: 0.00537 | AD8: 0.00537 | AE8: 0.00537 | AF8: 0.00537 | AG8: 0.00537 | AH8: 0.00537
A9: Reeksen - cumulatief | C9: 2019 | D9: 2020 | E9: 2021 | F9: 2022 | G9: 2023 | H9: 2024 | I9: 2025 | J9: 2026 | K9: 2027 | L9: 2028 | M9: 2029 | N9: 2030 | O9: 2031 | P9: 2032 | Q9: 2033 | R9: 2034 | S9: 2035 | T9: 2036 | U9: 2037 | V9: 2038 | W9: 2039 | X9: 2040 | Y9: 2041 | Z9: 2042 | AA9: 2043 | AB9: 2044 | AC9: 2045 | AD9: 2046 | AE9: 2047 | AF9: 2048 | AG9: 2049 | AH9: 2050
A10: Prijsinflatie - cumulatief | D10: 1 | E10: =D10*(1+E3) -> 1.013 | F10: 1.02313 | G10: 1.0333613 | H10: 1.048861719 | I10: 1.069838954 | J10: 1.091235733 | K10: 1.113060448 | L10: 1.135321657 | M10: 1.15802809 | N10: 1.181188652 | O10: 1.204812425 | P10: 1.228908673 | Q10: 1.253486846 | R10: 1.278556583 | S10: 1.304127715 | T10: 1.330210269 | U10: 1.356814475 | V10: 1.383950764 | W10: 1.41162978 | X10: 1.439862375 | Y10: 1.468659623 | Z10: 1.498032815 | AA10: 1.527993471 | AB10: 1.558553341 | AC10: 1.589724408 | AD10: 1.621518896 | AE10: 1.653949274 | AF10: 1.687028259 | AG10: 1.720768824 | AH10: 1.755184201
A11: Looninflatie - cumulatief | D11: 1 | E11: =D11*(1+E5) -> 1.014 | F11: 1.033266 | G11: 1.052898054 | H11: 1.072903117 | I11: 1.099725695 | J11: 1.127218837 | K11: 1.155399308 | L11: 1.184284291 | M11: 1.213891398 | N11: 1.244238683 | O11: 1.27534465 | P11: 1.307228267 | Q11: 1.339908973 | R11: 1.373406698 | S11: 1.407741865 | T11: 1.442935412 | U11: 1.479008797 | V11: 1.515984017 | W11: 1.553883617 | X11: 1.592730708 | Y11: 1.632548975 | Z11: 1.6733627 | AA11: 1.715196767 | AB11: 1.758076686 | AC11: 1.802028604 | AD11: 1.847079319 | AE11: 1.893256302 | AF11: 1.940587709 | AG11: 1.989102402 | AH11: 2.038829962
A12: Onderhoudsindex - cumulatief | D12: 1 | E12: =D12*(1+E6) -> 1.03 | F12: 1.05575 | G12: 1.076865 | H12: 1.0984023 | I12: 1.125862357 | J12: 1.154008916 | K12: 1.182859139 | L12: 1.212430618 | M12: 1.242741383 | N12: 1.273809918 | O12: 1.305655166 | P12: 1.338296545 | Q12: 1.371753959 | R12: 1.406047808 | S12: 1.441199003 | T12: 1.477228978 | U12: 1.514159702 | V12: 1.552013695 | W12: 1.590814037 | X12: 1.630584388 | Y12: 1.671348998 | Z12: 1.713132723 | AA12: 1.755961041 | AB12: 1.799860067 | AC12: 1.844856569 | AD12: 1.890977983 | AE12: 1.938252432 | AF12: 1.986708743 | AG12: 2.036376462 | AH12: 2.087285873
A13: Marktindex (o.b.v. DNB) - cumulatief | D13: 1 | E13: =D13*(1+E7) -> 1.02 | F13: 1.0404 | G13: 1.061208 | H13: 1.08243216 | I13: 1.104080803 | J13: 1.126162419 | K13: 1.148685668 | L13: 1.171659381 | M13: 1.195092569 | N13: 1.21899442 | O13: 1.243374308 | P13: 1.268241795 | Q13: 1.29360663 | R13: 1.319478763 | S13: 1.345868338 | T13: 1.372785705 | U13: 1.400241419 | V13: 1.428246248 | W13: 1.456811173 | X13: 1.485947396 | Y13: 1.515666344 | Z13: 1.545979671 | AA13: 1.576899264 | AB13: 1.608437249 | AC13: 1.640605994 | AD13: 1.673418114 | AE13: 1.706886477 | AF13: 1.741024206 | AG13: 1.77584469 | AH13: 1.811361584
